Workbook

Sheet Transmission
A1: Transmissionswärmeverlust
A3: Gebäudevolumen | B3: 501.91 | C3: m³ | E3: Gebäudenutzfläche | G3: =B3*0.32 -> 160.6112 | H3: m²
A5: Gebäudetyp
B8: Fläche | D8: U-Wert | F8: Gewichtung | G8: Verluste
A9: Aussenwand | B9: 158.87 | C9: m² | D9: 0.21 | E9: W/(m²∙K) | F9: 1 | G9: =rech!I5 -> 3623.181594 | H9: kWh | R9: =B9*D9*F9 -> 33.3627
A10: Haustür | B10: 3.8 | C10: m² | D10: 1.3 | E10: W/(m²∙K) | F10: 1 | G10: =rech!I6 -> 449.978976 | H10: kWh | R10: =B10*D10*F10 -> 4.94
A11: Kellerdecke/Sohle | B11: 87.24 | C11: m² | D11: 0.23 | E11: W/(m²∙K) | F11: 0.6 | G11: =rech!I7 -> 1174.624066 | H11: kWh | K11: Bestimmung Höchstwerte | R11: 12.03912
A12: Dach | B12: 50 | C12: m² | D12: 0.17 | E12: W/(m²∙K) | F12: 1 | G12: =rech!I8 -> 964.8672 | H12: kWh | K12: für H'T und H'T,ref | R12: 8.5
A13: OG-Decke | B13: 63.91 | C13: m² | D13: 0.17 | E13: W/(m²∙K) | F13: 0.8 | G13: =rech!I9 -> 1042.693388 | H13: kWh | R13: 8.69176
A14: Bodenluke | B14: 0.72 | C14: m² | D14: 0.7 | E14: W/(m²∙K) | F14: 0.8 | G14: =rech!I10 -> 38.52451584 | H14: kWh | R14: 0.4032
A15: Fenster nord | B15: 5.47 | C15: m² | D15: 1.3 | E15: W/(m²∙K) | F15: 1 | G15: =rech!I11 -> 647.7328944 | H15: kWh | K15: ∙ | R15: 7.111
A16: Fenster ost | B16: 4.88 | C16: m² | D16: 1.3 | E16: W/(m²∙K) | F16: 1 | G16: =rech!I12 -> 577.8677376 | H16: kWh | R16: 6.344
A17: Fenster west | B17: 7.44 | C17: m² | D17: 1.3 | E17: W/(m²∙K) | F17: 1 | G17: =rech!I13 -> 881.0114688 | H17: kWh | K17: ∙ | R17: 9.672
A18: Fenster süd | B18: 12.88 | C18: m² | D18: 1.3 | E18: W/(m²∙K) | F18: 1 | G18: =rech!I14 -> 1525.191898 | H18: kWh | R18: 16.744
A20: Hüllfläche gesamt | B20: =SUM(B9:B18) -> 395.21 | C20: m²
K21: H'T,ref zulässig EnEV 2016
K23: =ref!H18 -> 0.3669851471
A24: Wärmebrücken | G24: =rech!I18 -> 1733.29621 | H24: kWh | K24: H'T zulässig EnEV 2009 - 2016 | R24: =IF(F42=0,0.05*B20,IF(F42=1,0.1*B20)) -> 19.7605
K25: =IF(L42=0,M42,IF(L42=1,M43,IF(L42=2,M44,IF(L42=3,M45,IF(L42=4,M46))))) -> 0.4
R26: =SUM(R9:R18)+R24 -> 127.56828
A27: Transmissionswärmeverlust | G27: =SUM(G9:G18) -> 10925.67374 | H27: kWh | K27: Vorhandener spezifischer
K28: Transmissionswärmeverlust
K29: =R26/B20 -> 0.3227860631
M41: 2009/2013
A42: mit Berücksichtigung DIN 4108 Bbl. 2 (0,05) | F42: 0 | K42: freistehend AN ≤ 350m² | L42: 0 | M42: 0.4
A43: ohne Berücksichtigung DIN 4108 Bbl. 2 (0,10) | K43: freistehend AN > 350m² | M43: 0.5
K44: einseitig angebaut | M44: 0.45
A45: Solargewinne durch opake Bauteile | F45: FALSE | K45: zweiseitig angebaut ≤350 m² | M45: 0.65
K46: alle anderen | M46: 0.65
A50: EZFH bis 3 Vollgeschosse | F50: 0
A51: sonstige Gebäude

Sheet Lüftung_Gewinne
A1: Lüftungswärmeverlust
A3: Art des Dichtheitsnachweises
A6: Lüftungswärmeverlust Heizperiode | H6: =rech!I27 -> 7963.266605 | I6: kWh
A9: Solare und interne Gewinne
K10: Transmissionswärmeverluste
A11: wirks. Wärmespeicherfähigkeit | D11: g-Wert | F11: Fläche | K11: =Transmission!G27 -> 10925.67374
C12: nord | D12: =A33/100 -> 0.58 | F12: =Transmission!B15 -> 5.47 | G12: m² | H12: =rech!I41 -> 782.1173723 | I12: kWh | K12: +
C13: ost | D13: =A34/100 -> 0.58 | F13: =Transmission!B16 -> 4.88 | G13: m² | H13: =rech!I42 -> 1145.930507 | I13: kWh | K13: Lüftungswärmeverluste
A14: m. NA = mit Nachtabsenkung | C14: west | D14: =A35/100 -> 0.58 | F14: =Transmission!B17 -> 7.44 | G14: m² | H14: =rech!I44 -> 1747.07438 | I14: kWh | K14: =H6 -> 7963.266605
A15: o. NA = ohne Nachtabsenkung | C15: süd | D15: =A36/100 -> 0.58 | F15: =Transmission!B18 -> 12.88 | G15: m² | H15: =rech!I43 -> 3444.552673 | I15: kWh | K15: -
K16: nutzbare Solargewinne
A17: Nutzbare Solargewinne | H17: =rech!I67 -> 3848.691278 | I17: kWh | K17: =H17 -> 3848.691278
K18: -
A19: Nutzbare interne Gewinne | H19: =rech!I68 -> 4790.335502 | I19: kWh | K19: nutzbare Interne Gewinne
K20: =H19 -> 4790.335502
A21: Solare und interne Gewinne | H21: =H17+H19 -> 8639.02678 | I21: kWh | K21: =
K22: Jahres-Heizwärmebedarf
K23: =H24 -> 8876.436186
A24: Jahres-Heizwärmebedarf | H24: =rech!I71 -> 8876.436186 | I24: kWh
A26: Spez. Jahres-Heizwärmebedarf | H26: =H24/Transmission!G3 -> 55.26660772 | I26: kWh/m²
A33: 58
A34: 58
A35: 58
A36: 58
A40: ohne Luftdichtheitstest (n=0,7) | F40: 0
A41: mit Luftdichtheitstest (n=0,6)
A42: mit Test + Abluftanlage (n=0,55)
A44: Leichte Bauweise o. NA | F44: 3
A45: Schwere Bauweise o. NA
A46: Leichte Bauweise m. NA
A47: Schwere Bauweise m. NA

Sheet Warmwasser
A1: Ermittlung der Anlagenaufwand nach DIN V 4701-10
A3: Trinkwassererwärmung | D3: Verteilung im unbeheizten Bereich
K4: gemeinsame Installationswand
A5: Trinkwasserwärmebedarf | E5: 12,5 ∙ AN | G5: =Transmission!G3*12.5 -> 2007.64 | H5: kWh/a
A8: Aufwand | E8: Brennstoff | L8: Hilfsenergie
E9: spezifisch | G9: absolut | I9: Gewinn
A10: Übergabe | E10: 0 | F10: kWh/m² | G10: =E10*Transmission!G3+G5 -> 2007.64 | H10: kWh | L10: 0 | M10: kWh/m²
A12: Verteilung | E12: 11.281664 | F12: kWh/m² | G12: =E12*Transmission!G3+G10 -> 3819.601593 | H12: kWh | I12: 1.7 | J12: kWh/m² | L12: 0.78604416 | M12: kWh/m²
A14: Speicherung | E14: 4.587776 | F14: kWh/m² | G14: 4556.449802 | H14: kWh | L14: 0.07787776 | M14: kWh/m²
A16: Erzeugung | E16: 1.18787776 | F16: - | G16: 5412.505384 | H16: kWh | L16: 0.23363328 | M16: kWh/m²
A19: Endenergiebedarf Trinkwassererwärmung
B21: Brennstoff | G21: =G16 -> 5412.505384 | H21: kWh/a
B23: Hilfsenergie | G23: =(L10+L12+L14+L16)*Transmission!G3 -> 176.2796577 | H23: kWh/a
A25: Wärmerückgewinn für Heizung | G25: =I12*Transmission!G3 -> 273.03904 | H25: kWh/a
A30: zentral, ohne Zirkulation | D30: 1
A31: zentral, mit Zirkulation
A32: wohnungszentral
A34: Indirekt beheizter Speicher | D34: 0
A35: Solarspeicher
A36: gasbefeuerter Speicher
A37: ohne Speicher
A39: Standardkessel | D39: 1
A40: NT-Kessel
A41: Brennwertkessel
A42: Gasbefeuerter Speicher
A43: elektr. Durchlauferhitzer
A44: Nah-/Fernwärme
A45: Heizungs-WP (Luft)
A46: Heizungs-WP (Erde)
A48: Verteilung - immer außerhalb der thermischen Hülle
C49: mit Zirkulation | H49: ohne Zirkulation | P49: wohnungszentrale WW-Versorgung
B50: AN | C50: Verlust | D50: Gewinn | F50: Hilfsenergie | H50: Verlust | J50: Gewinn | M50: Hilfsenergie | P50: Verlust | Q50: Gewinn | R50: Hilfsenergie
B51: 100 | C51: 14.6 | D51: 1.7 | F51: 1.14 | H51: 6.7 | J51: 1 | M51: 0 | P51: 1.51 | Q51: 0.68 | R51: 0
B52: 150 | C52: 11.6 | D52: 1.7 | F52: 0.82 | H52: 5.4 | J52: 1 | M52: 0 | P52: 1.51 | Q52: 0.68 | R52: 0
B53: 200 | C53: 10.1 | D53: 1.8 | F53: 0.66 | H53: 4.7 | J53: 1 | M53: 0 | P53: 1.51 | Q53: 0.68 | R53: 0
B54: 300 | C54: 8.7 | D54: 1.8 | F54: 0.49 | H54: 4 | J54: 1 | M54: 0 | P54: 1.51 | Q54: 0.68 | R54: 0
B55: 500 | C55: 7.6 | D55: 1.9 | F55: 0.34 | H55: 3.4 | J55: 1 | M55: 0 | P55: 1.51 | Q55: 0.68 | R55: 0
A57: Speicher - immer außerhalb der thermischen Hülle
C58: indirekt beheizter Speicher | H58: Solarspeicher | P58: gasbefeuerter Speicher
B59: AN | C59: Verlust | D59: Gewinn | F59: Hilfsenergie | H59: Verlust | J59: Deckung mit Zirkulation | M59: Deckung ohne Zirkulation | P59: Verlust | Q59: Gewinn | R59: Hilfsenergie
B60: 100 | C60: 6.5 | D60: 0 | F60: 0.11 | H60: 4.3 | J60: 0.51 | M60: 0.63 | P60: 21.3 | Q60: 0 | R60: 0
B61: 150 | C61: 4.8 | D61: 0 | F61: 0.08 | H61: 3.1 | J61: 0.51 | M61: 0.61 | P61: 18 | Q61: 0 | R61: 0
B62: 200 | C62: 3.8 | D62: 0 | F62: 0.07 | H62: 2.4 | J62: 0.5 | M62: 0.59 | P62: 16.1 | Q62: 0 | R62: 0
B63: 300 | C63: 2.8 | D63: 0 | F63: 0.05 | H63: 1.7 | J63: 0.49 | M63: 0.57 | P63: 14 | Q63: 0 | R63: 0
B64: 500 | C64: 1.9 | D64: 0 | F64: 0.04 | H64: 1.9 | J64: 0.53 | M64: 0.57 | P64: 11.9 | Q64: 0 | R64: 0
A66: Erzeugung - immer außerhalb der thermischen Hülle
C67: Standardkessel | F67: NT-Kessel | J67: BW-Kessel | P67: gasbefeuerter Speicher | R67: el. DLE | U67: Nah-/Fernwärme | W67: Heizungs-WP (Luft) | Y67: Heizungs-WP (Erde)
B68: AN | C68: Aufwandszahl | D68: Hilfsen. | F68: Aufwandszahl | H68: Hilfsen. | J68: Aufwandszahl | M68: Hilfsen. | P68: Aufwandszahl | Q68: Hilfsenergie | R68: Aufwand | S68: Hilfsenergie | U68: Aufwand | V68: Hilfsenergie | W68: Aufwand | X68: Hilfsenergie | Y68: Aufwand | Z68: Hilfsenergie
B69: 100 | C69: 1.82 | D69: 0.3 | F69: 1.21 | H69: 0.3 | J69: 1.17 | M69: 0.3 | P69: 1.22 | Q69: 0 | R69: 1 | S69: 0 | U69: 1.14 | V69: 0.4 | W69: 0.3 | X69: 0 | Y69: 0.27 | Z69: =0.5*Transmission!$G$3^-0.1 -> 0.3008793773
B70: 150 | C70: 1.71 | D70: 0.24 | F70: 1.19 | H70: 0.24 | J70: 1.15 | M70: 0.24 | P70: 1.22 | Q70: 0 | R70: 1 | S70: 0 | U70: 1.14 | V70: 0.4 | W70: 0.3 | X70: 0 | Y70: 0.27 | Z70: =0.5*Transmission!$G$3^-0.1 -> 0.3008793773
B71: 200 | C71: 1.64 | D71: 0.21 | F71: 1.18 | H71: 0.21 | J71: 1.14 | M71: 0.21 | P71: 1.22 | Q71: 0 | R71: 1 | S71: 0 | U71: 1.14 | V71: 0.4 | W71: 0.3 | X71: 0 | Y71: 0.27 | Z71: =0.5*Transmission!$G$3^-0.1 -> 0.3008793773
B72: 300 | C72: 1.56 | D72: 0.17 | F72: 1.17 | H72: 0.17 | J72: 1.13 | M72: 0.17 | P72: 1.22 | Q72: 0 | R72: 1 | S72: 0 | U72: 1.14 | V72: 0.4 | W72: 0.3 | X72: 0 | Y72: 0.27 | Z72: =0.5*Transmission!$G$3^-0.1 -> 0.3008793773
B73: 500 | C73: 1.46 | D73: 0.13 | F73: 1.15 | H73: 0.13 | J73: 1.12 | M73: 0.13 | P73: 1.22 | Q73: 0 | R73: 1 | S73: 0 | U73: 1.14 | V73: 0.4 | W73: 0.3 | X73: 0 | Y73: 0.27 | Z73: =0.5*Transmission!$G$3^-0.1 -> 0.3008793773
A76: gemeinsame Installationswand | D76: FALSE
BS410: 273.03904 | BU410: 0.78604416

Sheet Lüftungsanlage
A1: Ermittlung der Aufwandszahl nach DIN V 4701-10
A3: Lüftungsanlage | E3: Anlage ohne Nachheizung
E4: Verteilung im unbeheizten Dach
E5: Anlagenluftwechsel 0,4
A8: Aufwand | E8: Brennstoff | L8: Hilfsenergie
E9: spezifisch | G9: absolut | I9: Gewinn
A10: Übergabe | E10: 0 | F10: kWh/m² | G10: 0 | H10: kWh | L10: 0 | M10: kWh/m²
A12: Verteilung | E12: 0 | F12: kWh/m² | G12: =E12*Transmission!G3+G10 -> 0 | H12: kWh | L12: 0 | M12: kWh/m²
A14: Erzeugung | E14: =IF(G39=0,E39,IF(G39=1,E40,IF(G39=2,E41,IF(G39=3,E42)))) -> 0 | F14: kWh/m² | G14: =E14*Transmission!G3+G12 -> 0 | H14: kWh | I14: =IF(G39=0,IF(Lüftung_Gewinne!F40=0,0,F39),IF(G39=1,IF(Lüftung_Gewinne!F40=0,0,F40),IF(G39=2,F41,IF(G39=3,F42)))) -> 0 | J14: kWh/m² | L14: =IF(G39=0,I39,IF(G39=1,I40,IF(G39=2,I41,IF(G39=3,I42)))) -> 0 | M14: kWh/m²
A19: Endenergiebedarf Lüftungsanlage
B21: Brennstoff | G21: =G14 -> 0 | H21: kWh/a
B23: Hilfsenergie | G23: =(L10+L12+L14)*Transmission!G3 -> 0 | H23: kWh/a
A25: Wärmerückgewinn für Heizung | G25: =I14*Transmission!G3 -> 0 | H25: kWh/a
A34: dezentral ohne WRG | E34: 0 | G34: 3
A35: zentral mit WRG (η=0,6) | E35: 4.1
A36: zentral mit WRG (η=0,8) | E36: 0
A37: keine Anlage | E37: 0
A39: zentral mit WRG (η=0,6) | E39: 0 | F39: 13.5 | G39: 3 | I39: 1.7
A40: zentral mit WRG (η=0,8) | E40: 0 | F40: 17.2 | I40: 2.6
A41: dezentral ohne WRG | E41: 0 | F41: 0 | I41: 1.1
A42: keine Anlage | E42: 0 | F42: 0 | I42: 0

Sheet Heizung
A1: Ermittlung der Aufwandszahl nach DIN V 4701-10
A3: Heizung | E3: horizontale Verteilung außerhalb der thermischen Hülle
E4: Verteilungsstränge außenliegend und geregelte Pumpen
A5: Heizwärmebedarf | G5: =Lüftung_Gewinne!H24 -> 8876.436186 | H5: kWh/a
A7: abzgl. Gewinne (aus WW + Lüftung) | E7: =Warmwasser!G25+Lüftungsanlage!G25 -> 273.03904 | F7: kWh/a | G7: =G5-E7 -> 8603.397146 | H7: kWh/a
A10: Aufwand | E10: Brennstoff | L10: Hilfsenergie
E11: spezifisch | G11: absolut
A12: Übergabe | E12: 3.3 | F12: kWh/m² | G12: =E12*Transmission!G3+G7 -> 9133.414106 | H12: kWh | L12: 0 | M12: kWh/m²
A14: Verteilung | E14: 6.2665536 | F14: kWh/m² | G14: =E14*Transmission!G3+G12 -> 10139.8928 | H14: kWh | L14: 1.28845504 | M14: kWh/m²
A16: Erzeugung | E16: 1.12787776 | F16: - | G16: =E16*G14 -> 11436.55958 | H16: kWh | L16: 0.64302208 | M16: kWh/m²
A19: Endenergiebedarf Heizung
B21: Brennstoff | G21: =G16 -> 11436.55958 | H21: kWh/a
B23: Hilfsenergie | G23: =(L12+L14+L16)*Transmission!G3 -> 310.216858 | H23: kWh/a
A30: Heizkörper 2K-Ventile | G30: 0
A31: Heizkörper 1K-Ventile
A32: Fußbodenheizung 0,5K
A33: dez. Einzelfeuerstätte
A34: Heizkörper (55/45) | G34: 0
A35: Fußbodenheizung (35/28)
A36: dezentral (raumweise)
A38: Standardkessel | G38: 1
A39: NT-Kessel (55/45)
A40: Brennwertkessel (55/45)
A41: Brennwertkessel (35/28)
A42: Speicherheizung
A43: Nah-/Fernwärme
A44: Wärmepumpe(Luft 35/28)
A45: Wärmep.(Erdreich 35/28)

Sheet Primärenergie
A1: Primärenergiebedarf
A4: Primärenergiebedarf Wärme
B5: Endenergiebedarf | E5: Primärenergie-Faktor | G5: PE-Bedarf
A6: Heizung | B6: =Heizung!G21 -> 11436.55958 | C6: kWh | G6: 12580.21554 | H6: kWh
A7: Warmwasser | B7: =Warmwasser!G21 -> 5412.505384 | C7: kWh | G7: 5953.755922 | H7: kWh
A8: Lüftungsanlage | B8: =Lüftungsanlage!G21 -> 0 | C8: kWh | G8: 0 | H8: kWh
A10: Primärenergiebedarf Hilfsenergie
B11: Endenergiebedarf | E11: Primärenergie-Faktor | G11: PE-Bedarf
A12: Heizung | B12: =Heizung!G23 -> 310.216858 | C12: kWh | G12: 806.5638308 | H12: kWh
A13: Warmwasser | B13: =Warmwasser!G23 -> 176.2796577 | C13: kWh | G13: 458.3271101 | H13: kWh
A14: Lüftungsanlage | B14: =Lüftungsanlage!G23 -> 0 | C14: kWh | G14: 0 | H14: kWh
A16: Primärenergiebedarf gesamt
G17: PE-Bedarf
A18: Heizung | G18: =G6+G12 -> 13386.77937 | H18: kWh | K18: ∙
A19: Warmwasser | G19: =G7+G13 -> 6412.083033 | H19: kWh | K19: Zulässiger spezifischer
A20: Lüftungsanlage | G20: =G8+G14 -> 0 | H20: kWh | K20: Primärenergiebedarf
K21: =ref!O115 -> 59.42820855
A23: Jahres-Primärenergiebedarf | G23: =G18+G19+G20 -> 19798.8624 | H23: kWh | K23: Vorhandener Spezifischer
K24: Primärenergiebedarf
K25: =G23/Transmission!G3 -> 123.271991
A40: Heizöl (1,1) | D40: 1 | I40: 2009 | K40: FALSE
A41: Erdgas H (1,1) | D41: 1 | I41: 2013 | K41: FALSE
A42: Flüssiggas (1,1) | D42: 0 | I42: 2016 | K42: TRUE
A43: Steinkohle (1,1) | D43: 0
A44: Braunkohle (1,2) | D44: 0
A45: Holz (0,2) | D45: 0
A46: Nah-/Fernwärme KWK fossil (0,7)
A47: Nah-/Fernwärme KWK reg. (0,0)
A48: Nah-/Fernwärme fossil (1,3)
A49: Nah-/Fernwärme reg. (0,1)
A50: Strom 2009 (2,6)
A51: Strom 2013 (2,4)
A52: Strom 2016 (1,8)

Sheet Ergebnis
A1: Ergebnis nach EnEV 2009/2013/2016
F5: Spez. Transmissionsverlust H'T
F7: zulässig | G7: =Transmission!K25 -> 0.4 | H7: W/(m²∙K)
F8: erreicht | G8: =Transmission!K29 -> 0.3227860631 | H8: W/(m²∙K)
F11: Spez. Transmissionsverlust H'T,ref
F13: zulässig | G13: =Transmission!K23 -> 0.3669851471 | H13: W/(m²∙K)
F14: erreicht | G14: =Transmission!K29 -> 0.3227860631 | H14: W/(m²∙K)
F17: Jahres-Primärenergiebedarf
F19: zulässig | G19: =Primärenergie!K21 -> 59.42820855 | H19: kWh/m²∙a
F20: erreicht | G20: =Primärenergie!K25 -> 123.271991 | H20: kWh/m²∙a
A33: Transmission | B33: Aussenwand | C33: =rech!I5 -> 3623.181594 | D33: 0
B34: Haustür | C34: =rech!I6 -> 449.978976 | D34: 0
B35: Bodenplatte | C35: =rech!I7 -> 1174.624066 | D35: 0
B36: Dach | C36: =rech!I8 -> 964.8672 | D36: 0
B37: OG-Decke | C37: =rech!I9 -> 1042.693388 | D37: 0
B38: Bodenluke | C38: =rech!I10 -> 38.52451584 | D38: 0
B39: Fenster | C39: =rech!J14 -> 3631.803998 | D39: 0
B40: Wärmebrücken | C40: =rech!I18 -> 1733.29621 | D40: 0
A41: Lüftung | B41: Lüftung | C41: =rech!I27 -> 7963.266605 | D41: 0
A42: Anlagen | B42: Anlagenaufwand | C42: =D47-SUM(C33:C41) -> 7815.652625 | D42: 0
B43: Solar | C43: 0 | D43: =Lüftung_Gewinne!H17 -> 3848.691278
B44: Intern | C44: 0 | D44: =Lüftung_Gewinne!H19 -> 4790.335502
B45: Brennstoff | C45: 0 | D45: =Primärenergie!G23 -> 19798.8624
C47: =SUM(C33:C45) -> 28437.88918 | D47: =SUM(D33:D45) -> 28437.88918

Sheet Info
B4: EXCEL-Arbeitsmappe zur Energieeinsparverordnung 2013/2016
B5: (nach dem Stand der Energieeinsparverordnung vom 18.11.2013 - Bundesgesetzblatt)
D10: Ingenieurbüro für Energieberatung
D11: Ernst Merkschien
D12: 33604 Bielefeld
D13: Tel.: 0521/5575275
D14: Fax: 0521/5575279
D15: Mail: info@merkschien.de
D16: http://www.merkschien.de
B22: Diese EXCEL-Arbeitmappe wurde ursprünglich als Begleitmaterial für den REN-IMPULS-Kurs zur
B23: Energieeinsparverordnung im Auftrag der Energieagentur NRW erstellt. Die Fortschreibung mit den
B24: Berechnungen nach EnEV 2013 erfolgte durch das Ingenieurbüro für Energieberatung, Bielefeld.
B26: Für die Richtigkeit der Berechnung und die Funktion der Arbeitsmappe wird keine Haftung übenommen.
B27: Die Berechnung des Heizwärmebedarfs erfolgt nach dem Monatsbilanzverfahren der DIN V 4108-6.
B28: Die Berechnungen für den Bereich Versorgungstechnik basieren auf den Regelungen der DIN V 4701-10.
B30: Copyright© 2000-2016 Ernst Merkschien, Stand: 26.01.2016

Sheet Hilfe
B2: EXCEL-Berechnungstool Nachweis Neubau (EnEV.XLS)
B3: Kurzbeschreibung zur Arbeitsmappe
B5: Bei der Arbeitsmappe EnEV.XLS handelt es sich um ein didaktisches Instrument, mit dessen Hilfe die Rechengänge der Energieeinsparverordnung im Rahmen eines Seminars den Teilnehmern vermittelt werden sollen. Es ist auch dazu geeignet, sich im Rahmen des Selbststudiums ein Gefühl für die Verordnung zu erarbeiten.
B7: Die Arbeitsmappe wurde auf dem Betriebssystem Windows mit Excel ´97 erstellt und an die folgenden Excel-Versionen bis inkl. Version 2013 angepasst, so dass sie auf allen heute verwendeten Excel-Versionen lauffähig sein müsste. Mit dem Programm OpenOffice ist das Arbeitsblatt nicht zu betreiben.
B9: Nach dem Start der Datei gibt Excel einen Hinweis darauf, dass die Arbeitsmappe Makros enthält. Hier muss die Schaltfläche „Makros aktivieren“ gedrückt werden, da das Rechenblatt sonst nicht komplett funktioniert. In neueren Excel-Versionen erscheint unterhalb der Menuleiste der folgende Hinweis:
B11: „Sicherheitswarnung: Die automatische Aktualisierung von Hyperlinks wurde deaktiviert“
B13: Dahinter befindet sich ein Knopf mit der Beschriftung „Qptionen“. Dieser muss betätigt werden und in der folgenden Auswahl ist der Punkt „Diesen Inhalt aktivieren“ zu markieren. Die Auswahl ist mit „OK“ zu bestätigen.
B15: Nach dem Öffnen des Arbeitsblattes gelangt man auf die Info-Seite. Hier werden Informationen zum Ersteller und Copyright gegeben.
B17: Auf den übrigen Tabellenblättern werden Daten ein- und ausgegeben, sowie die Berechnungen durchgeführt. Der Aufbau dieser Tabellenblätter ist immer gleich. Auf der rechten Seite befindet sich der gelb hinterlegte Info-Bereich, wo Informationen über den Ablauf der Berechnungen und Ergebnisse dargestellt werden.
B19: Der größere linke Bereich der Tabellenblätter ist grau hinterlegt. Hier werden Eingaben getätigt und Berechnungen ausgeführt. Bei den Zellen gibt es zwei Typen:
B20: · Die weiss hinterlegten sind Eingabefelder, wo Daten eingegeben werden müssen.
B21: · Die blauen sind Ausgabefelder, wo sich Ergebnisse, Zwischenergebnisse oder feste Werte befinden.
B23: Die Daten des bereits eingegebenen Beispielgebäudes können nach Belieben geändert werden. Die Arbeitsmappe ist in keinerlei Weise geschützt oder gesperrt, so dass Sie theoretisch auch die Formeln und Makros ändern können. Es wird allerdings davon abgeraten.
B25: Bei dem Gebäude handelt es sich um ein Einfamilienhaus, welches nach dem Monatsbilanzverfahren gemäß Anlage 1 der EnEV gerechnet wird.
B27: Da das Arbeitsblatt für Schulungszwecke erstellt wurde, besitzt es keine Routine zum Ausdruck. Auch ist der Rechengang nicht an allen Stellen komplett, da die komplette EnEV im Rahmen dieses Arbeitsblattes nicht behandelt werden kann. So wurde insbesondere bei den versorgungstechnischen Anlagen eine eingeschränkte Auswahl der zur Verfügung stehenden Systeme nach DIN V 4701-10 getroffen.
B29: Für das Funktionieren des Arbeitsblattes und der enthaltenen Rechengänge übernimmt der Ersteller keine Haftung. Ebenfalls kann keine Garantie hinsichtlich Virenfreiheit übernommen werden. Wir raten Ihnen zur ständigen Benutzung eines Virenscanners mit den neuesten Signaturen.

Sheet rech (hidden)
A1: Transmissionswärmeverluste
C3: Fläche | D3: U-Wert | E3: g-Wert | F3: Fx | G3: HWB | H3: HT | I3: Q in kWh | L3: J | M3: F | N3: M | O3: A | P3: M | Q3: J | R3: J | S3: A | T3: S | U3: O | V3: N | W3: D
B5: =Transmission!A9 -> Aussenwand | C5: =Transmission!B9 -> 158.87 | D5: =Transmission!D9 -> 0.21 | E5: - | F5: =Transmission!F9 -> 1 | G5: =$C$20*C5 -> 7.9435 | H5: =C5*D5*F5+G5 -> 41.3062 | I5: =SUM(L5:W5) -> 3623.181594 | L5: =(C5*D5*F5+G5)*0.024*(L$20-L$21)*L$22 -> 623.8557998 | M5: =(C5*D5*F5+G5)*0.024*(M$20-M$21)*M$22 -> 510.7429018 | N5: =(C5*D5*F5+G5)*0.024*(N$20-N$21)*N$22 -> 457.9040107 | O5: =(C5*D5*F5+G5)*0.024*(O$20-O$21)*O$22 -> 282.534408 | P5: =(C5*D5*F5+G5)*0.024*(P$20-P$21)*P$22 -> 187.4640581 | Q5: =(C5*D5*F5+G5)*0.024*(Q$20-Q$21)*Q$22 -> 98.1435312 | R5: =(C5*D5*F5+G5)*0.024*(R$20-R$21)*R$22 -> 30.7318128 | S5: =(C5*D5*F5+G5)*0.024*(S$20-S$21)*S$22 -> 21.51226896 | T5: =(C5*D5*F5+G5)*0.024*(T$20-T$21)*T$22 -> 136.8061344 | U5: =(C5*D5*F5+G5)*0.024*(U$20-U$21)*U$22 -> 304.2449467 | V5: =(C5*D5*F5+G5)*0.024*(V$20-V$21)*V$22 -> 425.2886352 | W5: =(C5*D5*F5+G5)*0.024*(W$20-W$21)*W$22 -> 543.9530866
B6: =Transmission!A10 -> Haustür | C6: =Transmission!B10 -> 3.8 | D6: =Transmission!D10 -> 1.3 | E6: - | F6: =Transmission!F10 -> 1 | G6: =$C$20*C6 -> 0.19 | H6: =C6*D6*F6+G6 -> 5.13 | I6: =SUM(L6:W6) -> 449.978976 | L6: 77.479416 | M6: =(C6*D6*F6+G6)*0.024*(M$20-M$21)*M$22 -> 63.431424 | N6: =(C6*D6*F6+G6)*0.024*(N$20-N$21)*N$22 -> 56.869128 | O6: =(C6*D6*F6+G6)*0.024*(O$20-O$21)*O$22 -> 35.0892 | P6: =(C6*D6*F6+G6)*0.024*(P$20-P$21)*P$22 -> 23.281992 | Q6: =(C6*D6*F6+G6)*0.024*(Q$20-Q$21)*Q$22 -> 12.18888 | R6: =(C6*D6*F6+G6)*0.024*(R$20-R$21)*R$22 -> 3.81672 | S6: =(C6*D6*F6+G6)*0.024*(S$20-S$21)*S$22 -> 2.671704 | T6: =(C6*D6*F6+G6)*0.024*(T$20-T$21)*T$22 -> 16.99056 | U6: =(C6*D6*F6+G6)*0.024*(U$20-U$21)*U$22 -> 37.785528 | V6: =(C6*D6*F6+G6)*0.024*(V$20-V$21)*V$22 -> 52.81848 | W6: =(C6*D6*F6+G6)*0.024*(W$20-W$21)*W$22 -> 67.555944
B7: =Transmission!A11 -> Kellerdecke/Sohle | C7: =Transmission!B11 -> 87.24 | D7: =Transmission!D11 -> 0.23 | E7: - | F7: 0.45 | G7: =$C$20*C7 -> 4.362 | H7: 13.39134 | I7: 1174.624066 | L7: 202.2520863 | M7: 165.5812408 | N7: 148.4510387 | O7: 91.5967656 | P7: 60.77525746 | Q7: 31.81782384 | R7: 9.96315696 | S7: 6.974209872 | T7: 44.35211808 | U7: 98.6352539 | V7: 137.8772366 | W7: 176.3478782
B8: =Transmission!A12 -> Dach | C8: =Transmission!B12 -> 50 | D8: =Transmission!D12 -> 0.17 | E8: - | F8: =Transmission!F12 -> 1 | G8: 2.5 | H8: 11 | I8: 964.8672 | L8: 166.1352 | M8: 136.0128 | N8: 121.9416 | O8: 75.24 | P8: 49.9224 | Q8: 26.136 | R8: 8.184 | S8: 5.7288 | T8: 36.432 | U8: 81.0216 | V8: 113.256 | W8: 144.8568
B9: =Transmission!A13 -> OG-Decke | C9: =Transmission!B13 -> 63.91 | D9: =Transmission!D13 -> 0.17 | E9: - | F9: =Transmission!F13 -> 0.8 | G9: 3.1955 | H9: 11.88726 | I9: 1042.693388 | L9: 179.5356652 | M9: 146.9835924 | N9: 131.7774095 | O9: 81.3088584 | P9: 53.94914078 | Q9: 28.24412976 | R9: 8.84412144 | S9: 6.190885008 | T9: 39.37060512 | U9: 87.55680226 | V9: 122.391229 | W9: 156.5409495
B10: =Transmission!A14 -> Bodenluke | C10: =Transmission!B14 -> 0.72 | D10: =Transmission!D14 -> 0.7 | E10: - | F10: =Transmission!F14 -> 0.8 | G10: 0.036 | H10: 0.4392 | I10: 38.52451584 | L10: 6.63332544 | M10: 5.43062016 | N10: 4.86879552 | O10: 3.004128 | P10: 1.99326528 | Q10: 1.0435392 | R10: 0.3267648 | S10: 0.22873536 | T10: 1.4546304 | U10: 3.23497152 | V10: 4.5220032 | W10: 5.78373696
A11: =$C$5*C11/$C$15 -> 28.33449299 | B11: =Transmission!A15 -> Fenster nord | C11: =Transmission!B15 -> 5.47 | D11: =Transmission!D15 -> 1.3 | E11: =Lüftung_Gewinne!D12 -> 0.58 | F11: =Transmission!F15 -> 1 | G11: 0.2735 | H11: 7.3845 | I11: 647.7328944 | L11: 111.5295804 | M11: 91.3078656 | N11: 81.8616132 | O11: 50.50998 | P11: 33.5138148 | Q11: 17.545572 | R11: 5.494068 | S11: 3.8458476 | T11: 24.457464 | U11: 54.3912732 | V11: 76.030812 | W11: 97.2450036
A12: =$C$5*C12/$C$15 -> 25.27830453 | B12: =Transmission!A16 -> Fenster ost | C12: =Transmission!B16 -> 4.88 | D12: =Transmission!D16 -> 1.3 | E12: =Lüftung_Gewinne!D13 -> 0.58 | F12: =Transmission!F16 -> 1 | G12: 0.244 | H12: 6.588 | I12: 577.8677376 | L12: 99.4998816 | M12: 81.4593024 | N12: 73.0319328 | O12: 45.06192 | P12: 29.8989792 | Q12: 15.653088 | R12: 4.901472 | S12: 3.4310304 | T12: 21.819456 | U12: 48.5245728 | V12: 67.830048 | W12: 86.7560544
A13: =$C$5*C13/$C$15 -> 38.53905445 | B13: =Transmission!A17 -> Fenster west | C13: =Transmission!B17 -> 7.44 | D13: =Transmission!D17 -> 1.3 | E13: =Lüftung_Gewinne!D14 -> 0.58 | F13: =Transmission!F17 -> 1 | G13: 0.372 | H13: 10.044 | I13: 881.0114688 | L13: 151.6965408 | M13: 124.1920512 | N13: 111.3437664 | O13: 68.70096 | P13: 45.5836896 | Q13: 23.864544 | R13: 7.472736 | S13: 5.2309152 | T13: 33.265728 | U13: 73.9800864 | V13: 103.413024 | W13: 132.2674272
A14: =$C$5*C14/$C$15 -> 66.71814803 | B14: =Transmission!A18 -> Fenster süd | C14: =Transmission!B18 -> 12.88 | D14: =Transmission!D18 -> 1.3 | E14: =Lüftung_Gewinne!D15 -> 0.58 | F14: =Transmission!F18 -> 1 | G14: 0.644 | H14: 17.388 | I14: 1525.191898 | J14: =SUM(I11:I14) -> 3631.803998 | L14: 262.6144416 | M14: 214.9991424 | N14: 192.7564128 | O14: 118.93392 | P14: 78.9136992 | Q14: 41.313888 | R14: 12.936672 | S14: 9.0556704 | T14: 57.589056 | U14: 128.0730528 | V14: 179.026848 | W14: 228.9790944
C15: =SUM(C11:C14) -> 30.67
C17: =SUM(C5:C14) -> 395.21 | G17: =SUM(G5:G14) -> 19.7605 | H17: =SUM(H5:H14) -> 124.5585 | I17: =SUM(I5:I14) -> 10925.67374 | L17: =SUM(L5:L14) -> 1881.231937 | M17: =SUM(M5:M14) -> 1540.140941 | N17: 1380.805708 | O17: 851.98014 | P17: 565.2962964 | Q17: 295.950996 | R17: 92.671524 | S17: 64.8700668 | T17: 412.537752 | U17: 917.4480876 | V17: 1282.454316 | W17: 1640.285975
I18: =SUM(L18:W18) -> 1733.29621 | L18: =$G$17*0.024*(L$20-L$21)*L$22 -> 298.4467836 | M18: =$G$17*0.024*(M$20-M$21)*M$22 -> 244.3346304 | N18: 219.0569988 | O18: 135.16182 | P18: 89.6810532 | Q18: 46.950948 | R18: 14.701812 | S18: 10.2912684 | T18: 65.446776 | U18: 145.5479388 | V18: 203.454108 | W18: 260.2220724
B20: ∆UWB | C20: =IF(Transmission!F42=0,0.05,IF(Transmission!F42=1,0.1)) -> 0.05 | I20: Innentemp. | K20: Θi | L20: 19 | M20: 19 | N20: 19 | O20: 19 | P20: 19 | Q20: 19 | R20: 19 | S20: 19 | T20: 19 | U20: 19 | V20: 19 | W20: 19
I21: Außentemp. | K21: Θe,M | L21: -1.3 | M21: 0.6 | N21: 4.1 | O21: 9.5 | P21: 12.9 | Q21: 15.7 | R21: 18 | S21: 18.3 | T21: 14.4 | U21: 9.1 | V21: 4.7 | W21: 1.3
I22: Tage je Mon. | K22: tM | L22: 31 | M22: 28 | N22: 31 | O22: 30 | P22: 31 | Q22: 30 | R22: 31 | S22: 31 | T22: 30 | U22: 31 | V22: 30 | W22: 31
A25: Lüftungswärmeverluste | H25: HV
B27: 0,76 oder 0,80 | C27: =IF(Transmission!F50=0,0.76,IF(Transmission!F50=1,0.8)) -> 0.76 | H27: =0.34*$C$28*$C$30 -> 90.7854808 | I27: =SUM(L27:W27) -> 7963.266605 | L27: =0.34*$C$28*$C$30*0.024*(L$20-L$21)*L$22 -> 1371.151274 | M27: =0.34*$C$28*$C$30*0.024*(M$20-M$21)*M$22 -> 1122.544313 | N27: 1006.411526 | O27: 620.9726887 | P27: 412.0208261 | Q27: 215.7063024 | R27: 67.54439772 | S27: 47.2810784 | T27: 300.6815124 | U27: 668.6895374 | V27: 934.7273103 | W27: 1195.53584
B28: n | C28: =IF(Lüftung_Gewinne!F40=0,0.7,IF(Lüftung_Gewinne!F40=1,0.6,IF(Lüftung_Gewinne!F40=2,0.55))) -> 0.7
B29: Ve | C29: =Transmission!B3 -> 501.91
B30: V | C30: =C27*C29 -> 381.4516
A33: Interne Gewinne
B35: AN | C35: =0.32*C29 -> 160.6112 | I35: =SUM(L35:W35) -> 7034.77056 | L35: =$C$36*$C$35*0.024*L$22 -> 597.473664 | M35: =$C$36*$C$35*0.024*M$22 -> 539.653632 | N35: 597.473664 | O35: 578.20032 | P35: 597.473664 | Q35: 578.20032 | R35: 597.473664 | S35: 597.473664 | T35: 578.20032 | U35: 597.473664 | V35: 578.20032 | W35: 597.473664
B36: qi | C36: 5
A39: Solare Gewinne
B41: FF | C41: 0.7 | I41: =SUM(L41:W41) -> 782.1173723 | K41: FE nord | L41: =L47*$C$41*$C$42*$C$43*$C$44*$E$11*$C$11*24/1000*L22 -> 18.73696951 | M41: =M47*$C$41*$C$42*$C$43*$C$44*$E$11*$C$11*24/1000*M22 -> 27.80324508 | N41: 45.5040688 | O41: 82.89166234 | P41: 108.4067521 | Q41: 128.2230402 | R41: 133.8354965 | S41: 93.68484754 | T41: 62.16874675 | U41: 44.16571384 | V41: 23.31328003 | W41: 13.38354965
B42: FS | C42: 0.9 | I42: =SUM(L42:W42) -> 1145.930507 | K42: FE ost | L42: =L48*$C$41*$C$42*$C$43*$C$44*$E$12*$C$12*24/1000*L22 -> 29.84996448 | M42: =M48*$C$41*$C$42*$C$43*$C$44*$E$12*$C$12*24/1000*M22 -> 39.9026622 | N42: 63.2819247 | O42: 144.435312 | P42: 156.4138139 | Q42: 173.3223744 | R42: 186.2637784 | S42: 137.3098366 | T42: 103.9934246 | U42: 60.89392754 | V42: 32.35350989 | W42: 17.90997869
B43: FC | C43: 1 | I43: =SUM(L43:W43) -> 3444.552673 | K43: FE süd | L43: =L49*$C$41*$C$42*$C$43*$C$44*$E$14*$C$14*24/1000*L22 -> 176.4769048 | M43: =M49*$C$41*$C$42*$C$43*$C$44*$E$14*$C$14*24/1000*M22 -> 173.6305031 | N43: 252.1098639 | O43: 417.8111052 | P43: 375.0134226 | Q43: 396.4630925 | R43: 425.4353954 | S43: 352.9538095 | T43: 350.717351 | U43: 255.2612372 | V43: 164.6846692 | W43: 103.9953189
B44: Fw | C44: 0.9 | I44: =SUM(L44:W44) -> 1747.07438 | K44: FE west | L44: =L50*$C$41*$C$42*$C$43*$C$44*$E$13*$C$13*24/1000*L22 -> 45.50896224 | M44: =M50*$C$41*$C$42*$C$43*$C$44*$E$13*$C$13*24/1000*M22 -> 60.8352063 | N44: 96.47899995 | O44: 220.204656 | P44: 238.4669621 | Q44: 264.2455872 | R44: 283.9759244 | S44: 209.3412263 | T44: 158.5473523 | U44: 92.83828297 | V44: 49.32584294 | W44: 27.30537734
K47: IS,nord | L47: 14 | M47: 23 | N47: 34 | O47: 64 | P47: 81 | Q47: 99 | R47: 100 | S47: 70 | T47: 48 | U47: 33 | V47: 18 | W47: 10
K48: IS,ost | L48: 25 | M48: 37 | N48: 53 | O48: 125 | P48: 131 | Q48: 150 | R48: 156 | S48: 115 | T48: 90 | U48: 51 | V48: 28 | W48: 15
K49: IS,süd | L49: 56 | M49: 61 | N49: 80 | O49: 137 | P49: 119 | Q49: 130 | R49: 135 | S49: 112 | T49: 115 | U49: 81 | V49: 54 | W49: 33
K50: IS,west | L50: 25 | M50: 37 | N50: 53 | O50: 125 | P50: 131 | Q50: 150 | R50: 156 | S50: 115 | T50: 90 | U50: 51 | V50: 28 | W50: 15
A51: Ausnutzungsgrad Gewinne
A53: spez. | B53: Cwirk,ƞ leichte Gebäude | D53: 15 | E53: Wh/(m³*K)
A54: spez. | B54: Cwirk,ƞ schwere Gebäude | D54: 50 | E54: Wh/(m³*K)
A55: spez. | B55: Cwirk,NA leichte Gebäude | D55: 12 | E55: Wh/(m³*K) | I55: =SUM(L55:W55) -> 14154.44549 | K55: Qg | L55: =L35+SUM(L41:L44) -> 868.046465 | M55: =M35+SUM(M41:M44) -> 841.8252486 | N55: 1054.848521 | O55: 1443.543055 | P55: 1475.774615 | Q55: 1540.454414 | R55: 1626.984259 | S55: 1390.763384 | T55: 1253.627195 | U55: 1050.632826 | V55: 847.877622 | W55: 760.0678886
A56: spez. | B56: Cwirk,NA schwere Gebäude | D56: 18 | E56: Wh/(m³*K) | I56: =SUM(L56:W56) -> 18175.097 | K56: Ql | L56: =L17+L27-K138 -> 3113.360928 | M56: =M17+M27-L138 -> 2555.704633 | N56: 2299.772411 | O56: 1422.757005 | P56: 944.0210657 | Q56: 494.2257298 | R56: 154.7575517 | S56: 108.3302862 | T56: 688.9207142 | U56: 1532.020322 | V56: 2136.998993 | W56: 2724.227358
A58: abs. | B58: Cwirk | D58: =IF(Lüftung_Gewinne!F44=0,D53*$C$29,IF(Lüftung_Gewinne!F44=1,D54*$C$29,IF(Lüftung_Gewinne!F44=2,D55*$C$29,IF(Lüftung_Gewinne!F44=3,D56*$C$29)))) -> 9034.38 | E58: Wh/K | G58: =Transmission!F45 -> FALSE | K58: Ɣ = Qg / Ql | L58: =L55/L56 -> 0.2788133099 | M58: =M55/M56 -> 0.329390665 | N58: 0.4586751787 | O58: 1.014609698 | P58: 1.563285681 | Q58: 3.116904526 | R58: 10.51311707 | S58: 12.83817695 | T58: 1.819697345 | U58: 0.6857825647 | V58: 0.3967608899 | W58: 0.2790031038
K59:  = Cwirk / H | L59: =$D$58/($H$17+$H$27) -> 41.95325064 | M59: =$D$58/($H$17+$H$27) -> 41.95325064 | N59: 41.95325064 | O59: 41.95325064 | P59: 41.95325064 | Q59: 41.95325064 | R59: 41.95325064 | S59: 41.95325064 | T59: 41.95325064 | U59: 41.95325064 | V59: 41.95325064 | W59: 41.95325064
K60: a = 1+(/16) | L60: =1+L59/16 -> 3.622078165 | M60: =1+M59/16 -> 3.622078165 | N60: 3.622078165 | O60: 3.622078165 | P60: 3.622078165 | Q60: 3.622078165 | R60: 3.622078165 | S60: 3.622078165 | T60: 3.622078165 | U60: 3.622078165 | V60: 3.622078165 | W60: 3.622078165
B61: wenn Ɣ = 1 | C61: dann | D61:  = a / (a+1)
B62: wenn Ɣ  1 | C62: dann | D62:  = 1 - Ɣa / 1 - Ɣa+1 | K62:  | L62: =IF(L58=1,L60/(L60+1),(1-L58^L60)/(1-L58^(L60+1))) -> 0.9929186316 | M62: =IF(M58=1,M60/(M60+1),(1-M58^M60)/(1-M58^(M60+1))) -> 0.9879176354 | N62: 0.9669322551 | O62: 0.7779284361 | P62: 0.5873521505 | Q62: 0.3172647817 | R62: 0.09510212541 | S62: 0.0778857419 | T62: 0.519335045 | U62: 0.9028620338 | V62: 0.9785005285 | W62: 0.9929029631
A65: Heizwärmebedarf
L66: J | M66: F | N66: M | O66: A | P66: M | Q66: J | R66: J | S66: A | T66: S | U66: O | V66: N | W66: D
B67: nutzbare Solargewinne | I67: =SUM(L67:W67) -> 3848.691278 | K67: Qs | L67: =SUM(L41:L44)*L62 -> 268.6567753 | M67: =SUM(M41:M44)*M62 -> 298.520669 | N67: 442.2505023 | O67: 673.1747209 | P67: 515.8719522 | Q67: 305.2893352 | R67: 97.90864568 | S67: 61.78595838 | T67: 350.7728464 | U67: 409.1402023 | V67: 263.8793826 | W67: 161.4402873
B68: nutzbare interne Gewinne | I68: =SUM(L68:W68) -> 4790.335502 | K68: Qi | L68: =L35*L62 -> 593.2427329 | M68: =M35*M62 -> 533.1333401 | N68: 577.7165573 | O68: 449.7984707 | P68: 350.9274414 | Q68: 183.4425983 | R68: 56.82101533 | S68: 46.53467959 | T68: 300.2796892 | U68: 539.4362874 | V68: 565.7693187 | W68: 593.2333713
B69: Transmission | I69: =SUM(L69:W69) -> 10925.67374 | K69: QT | L69: =L17 -> 1881.231937 | M69: =M17 -> 1540.140941 | N69: 1380.805708 | O69: 851.98014 | P69: 565.2962964 | Q69: 295.950996 | R69: 92.671524 | S69: 64.8700668 | T69: 412.537752 | U69: 917.4480876 | V69: 1282.454316 | W69: 1640.285975
B70: Lüftung | I70: =SUM(L70:W70) -> 7963.266605 | K70: QV | L70: =L27 -> 1371.151274 | M70: =M27 -> 1122.544313 | N70: 1006.411526 | O70: 620.9726887 | P70: 412.0208261 | Q70: 215.7063024 | R70: 67.54439772 | S70: 47.2810784 | T70: 300.6815124 | U70: 668.6895374 | V70: 934.7273103 | W70: 1195.53584
B71: Heizwärmebedarf | F71: =I71/C35 -> 55.26660772 | G71: kWh/(m²*a) | I71: =SUM(L71:W71) -> 8876.436186 | K71: Qh | L71: =(L69+L70-K138-K196)-(L67+L68) -> 1930.838935 | M71: =(M69+M70-L138-L196)-(M67+M68) -> 1732.978595 | N71: 1281.255689 | O71: 289.2173414 | P71: 22.796089 | Q71: -52.15882014 | R71: -68.19467762 | S71: -74.10216378 | T71: -10.11400494 | U71: 549.5748155 | V71: 1297.540954 | W71: 1976.803434
K124: J | L124: F | M124: M | N124: A | O124: M | P124: J | Q124: J | R124: A | S124: S | T124: O | U124: N | V124: D
D125: Außentemperatur | H125: q e | I125: °C | K125: =L21 -> -1.3 | L125: =M21 -> 0.6 | M125: 4.1 | N125: 9.5 | O125: 12.9 | P125: 15.7 | Q125: 18 | R125: 18.3 | S125: 14.4 | T125: 9.1 | U125: 4.7 | V125: 1.3
D126: niedrigste Innentemperatur | H126: q inh | I126: °C | K126: =K125 -> -1.3 | L126: =L125 -> 0.6 | M126: 4.1 | N126: 9.5 | O126: 12.9 | P126: 15.7 | Q126: 18 | R126: 18.3 | S126: 14.4 | T126: 9.1 | U126: 4.7 | V126: 1.3
D127: niedrigste Bauteiltemperatur | H127: q cnh | I127: °C | K127: =K125+$P$176*(K126-K125) -> -1.3 | L127: =L125+$P$176*(L126-L125) -> 0.6 | M127: 4.1 | N127: 9.5 | O127: 12.9 | P127: 15.7 | Q127: 18 | R127: 18.3 | S127: 14.4 | T127: 9.1 | U127: 4.7 | V127: 1.3
D128: Innentemp. am Ende der nicht Heizph. | H128: q i1 | I128: °C | K128: =K126+$P$177*(K135-K127)*EXP(-K129/$P$179) -> 15.19696752 | L128: =L126+$P$177*(L135-L127)*EXP(-L129/$P$179) -> 15.55291638 | M128: 16.20861163 | N128: 17.22025574 | O128: 17.85721684 | P128: 18.38177305 | Q128: 18.8126585 | R128: 18.86886095 | S128: 18.13822909 | T128: 17.14531914 | U128: 16.32101653 | V128: 15.68405543
D129: Zeit in der nicht geheizt wird | H129: tnh | I129: h | K129: =$P$142 -> 7 | L129: =$P$142 -> 7 | M129: 7 | N129: 7 | O129: 7 | P129: 7 | Q129: 7 | R129: 7 | S129: 7 | T129: 7 | U129: 7 | V129: 7
D130: Zeit mit abgesenkten Regelbetrieb | H130: tsb | I130: h | K130: 0 | L130: 0 | M130: 0 | N130: 0 | O130: 0 | P130: 0 | Q130: 0 | R130: 0 | S130: 0 | T130: 0 | U130: 0 | V130: 0
D131: höchst mögliche Innentemperatur | H131: q ipp | I131: °C | K131: =K125+($P$144+$P$146)/$P$150 -> 39.43422492 | L131: =L125+($P$144+$P$146)/$P$150 -> 41.33422492 | M131: 44.83422492 | N131: 50.23422492 | O131: 53.63422492 | P131: 56.43422492 | Q131: 58.73422492 | R131: 59.03422492 | S131: 55.13422492 | T131: 49.83422492 | U131: 45.43422492 | V131: 42.03422492
D132: höchst mögliche Bauteiltemperatur | H132: q cpp | I132: °C | K132: =K125+$P$176*(K131-K125) -> 38.88176938 | L132: =L125+$P$176*(L131-L125) -> 40.78176938 | M132: 44.28176938 | N132: 49.68176938 | O132: 53.08176938 | P132: 55.88176938 | Q132: 58.18176938 | R132: 58.48176938 | S132: 54.58176938 | T132: 49.28176938 | U132: 44.88176938 | V132: 41.48176938
D133: Bauteiltemperatur Ende nicht Heizph. | H133: q c1 | I133: °C | K133: =K127+(K128-K126)/$P$177 -> 15.69208849 | L133: =L127+(L128-L126)/$P$177 -> 16.00169597 | M133: 16.57202554 | N133: 17.45196259 | O133: 18.00599703 | P133: 18.46226069 | Q133: 18.83704869 | R133: 18.88593409 | S133: 18.25042399 | T133: 17.38678207 | U133: 16.66979632 | V133: 16.11576188
D134: Zeit der Aufheizphase | H134: tbh | I134: h | K134: =IF(SUM($P$179*LN($P$177*(K132-K133)/(K131-$P$182)))>0,$P$179*LN($P$177*(K132-K133)/(K131-$P$182)),0) -> 4.131553174 | L134: =IF(SUM($P$179*LN($P$177*(L132-L133)/(L131-$P$182)))>0,$P$179*LN($P$177*(L132-L133)/(L131-$P$182)),0) -> 3.169195063 | M134: 1.726906503 | N134: 0.07698227669 | O134: 0 | P134: 0 | Q134: 0 | R134: 0 | S134: 0 | T134: 0.1812604638 | U134: 1.513900253 | V134: 2.849892084
D135: Bauteiltemperatur beginn Absenkung | H135: q co | I135: °C | K135: =K125+$P$176*($P$182-K125) -> 18.72468244 | L135: =L125+$P$176*($P$182-L125) -> 18.75045108 | M135: 18.79791962 | N135: 18.87115681 | O135: 18.91726911 | P135: 18.95524394 | Q135: 18.98643756 | R135: 18.99050629 | S135: 18.93761277 | T135: 18.86573183 | U135: 18.80605709 | V135: 18.75994479
D136: Bauteiltemperatur ende Aufheizph. | H136: q c3 | I136: °C | K136: =IF(K134>0,K132+($P$182-K131)/$P$177,K133) -> 17.83425519 | L136: =IF(L134>0,L132+($P$182-L131)/$P$177,L133) -> 17.77723078 | M136: 17.67218582 | N136: 17.51011644 | O136: 18.00599703 | P136: 18.46226069 | Q136: 18.83704869 | R136: 18.88593409 | S136: 18.25042399 | T136: 17.52212158 | U136: 17.65417811 | V136: 17.75622179
D137: Berechnung der täglichen Reduzierung | H137: DQilj | I137: kWh/d | K137: =($P$150*(($P$182-K126)*K129+($P$182-$P$143)*K130+($P$182-K131)*K134)-$P$147*$P$176*(K135-K133+K133-K136))/1000 -> 4.484589782 | L137: =($P$150*(($P$182-L126)*L129+($P$182-$P$143)*L130+($P$182-L131)*L134)-$P$147*$P$176*(L135-L133+L133-L136))/1000 -> 3.820736462 | M137: 2.820800742 | N137: 1.673194121 | O137: 1.074066348 | P137: 0.5810522867 | Q137: 0.1760764505 | R137: 0.1232535154 | S137: 0.8099516724 | T137: 1.745719455 | U137: 2.67275445 | V137: 3.599821158
D138: Berechnung der monatl. Reduzierung | H138: DQil | I138: kWh/M | K138: =K137*L22 -> 139.0222832 | L138: =L137*M22 -> 106.9806209 | M138: 87.44482301 | N138: 50.19582364 | O138: 33.29605679 | P138: 17.4315686 | Q138: 5.458369966 | R138: 3.820858976 | S138: 24.29855017 | T138: 54.11730309 | U138: 80.1826335 | V138: 111.5944559 | W138: =SUM(K138:V138) -> 713.8433478
K142: Dauer der Nachtabsenkung tu = | P142: 7 | Q142: h
K143: Mindest- Innentemperatur qisb = | P143: 14 | Q143: °C
K144: Nennleistung der Heizungsanlage Fpp = 1,5 x (HT+HV,n=0,5) x 31 | P144: =1.5*(H17+P149)*31 -> 8771.870149 | Q144: W
K145: Abschaltbetrieb = | P145: ja
K146: Interne Wärmegewinne während der Nachtabsenkung Fg = | P146: 0 | Q146: W
K147: Wirksame Wärmespeicherf. Cwirk,HU = | P147: =D58 -> 9034.38 | Q147: Wh/K
K148: Lüftungswärmeverluste Hv = | P148: =H27 -> 90.7854808 | Q148: W/K
K149: Lüftungswärmeverluste Hv,n=0,5 = | P149: =0.5*C30*0.28*1.2 -> 64.0838688 | Q149: W/K
K150: Spezifischer Wärmeverlust Hsb = (HT + HV) = | P150: =H17+H27 -> 215.3439808 | Q150: W/K
K151: Spezifischer Wärmeverlust zwischen den Bauteilen Hic = 4 x AN/0,13 m² | P151: =4*C35/0.13 -> 4941.883077 | Q151: W/K
K152: Spezif. Wärmeverlust leichter Bauteile Hw (Fenster, Türen, Paneele <60kg(m²))
K153: Eingabe Bauteilnummer | M153: Name Bauteil | P153: HW
K154: 3 | M154: Dachfläche | P154: =H8 -> 11 | Q154: W/K
K155: 4 | M155: Haustüre | P155: =H6 -> 5.13 | Q155: W/K
Q156: W/K
Q157: W/K
Q158: W/K
Q159: W/K
Q160: W/K
Q161: W/K
Q162: W/K
Q163: W/K
Q164: W/K
Q165: W/K
Q166: W/K
K167: Fenster | M167: Fenster Süd | P167: =H14 -> 17.388 | Q167: W/K
M168: Fenster Ost | P168: =H12 -> 6.588 | Q168: W/K
M169: Fenster West | P169: =H13 -> 10.044 | Q169: W/K
M170: Fenster Nord | P170: =H11 -> 7.3845 | Q170: W/K
M171: Fenster <30°C | Q171: W/K
M172: Fenster ohne Gewinne | Q172: W/K
M173: Summe HW = | P173: =SUM(P154:P172) -> 57.5345 | Q173: W/K
K174: Spezifischer Wärmeverlust zwischen den Innenbauteilen und außen Hce:
K175: Hce = Hic x (Hsb - Hw - Hv) / (Hic - Hsb + Hw + Hv) = | P175: =P151*(P150-P173-P148)/(P151-P150+P173+P148) -> 67.94550696 | Q175: W/K
K176: Wirksamer Anteil der Wärmespeicherfähigkeit z = Hic / (Hic + Hce) = | P176: =P151/(P151+P175) -> 0.9864375585 | Q176: -----
K177: Verhältniswert x = Hic / (Hic + Hw + Hv) = | P177: =P151/(+P151+P173+P148) -> 0.970861677 | Q177: -----
K178: Reaktionszeit der Bauteiltemperatur auf einen Wechsel der Heizleistung
K179: tp = z x C /(x . Hsb) = | P179: =+P176*P147/(P177*P150) -> 42.62632166
K180: Ansprechzeit der Bauteiltemperatur auf einen Wechsel der Lufttemperatur:
K181: tT = z x C /(Hce + Hic) = | P181: =+P176*P147/(P175+P151) -> 1.778873588
K182: normale Sollinnentemperatur q io = | P182: 19 | Q182: °C
B184: Solare Gewinne durch opake Bauteile
D186: Fläche | E186: Strahlungsab-sorptionsgrad | G186: U-Wert | H186: Formfaktor
D187: m² | E187: αi | G187: W/(m²*K) | H187: Ff | K187: gesamt | L187: J | M187: F | N187: M | O187: A | P187: M | Q187: J | R187: J | S187: A | T187: S | U187: O | V187: N | W187: D
B188: =B5 -> Aussenwand | C188: nord | D188: =A11 -> 28.33449299 | E188: 0.5 | G188: =D5 -> 0.21 | H188: 0.5 | K188: =SUM(L188:W188) -> 10.042107 | L188: =$G188*$D188*$D$197*($E188*L47-$H188*$D$198*$D$199)*L$22*0.024 -> -2.302030216 | M188: =$G188*$D188*$D$197*($E188*M47-$H188*$D$198*$D$199)*M$22*0.024 -> -1.359511641 | N188: -0.5312377422 | O188: 2.056404163 | P188: 3.630124571 | Q188: 5.055326901 | R188: 5.312377422 | S188: 2.656188711 | T188: 0.6854680544 | U188: -0.6197773659 | V188: -1.88503715 | W188: -2.656188711
C189: ost | D189: =A12 -> 25.27830453 | E189: 0.5 | G189: =D5 -> 0.21 | H189: 0.5 | K189: =SUM(L189:W189) -> 38.60810052 | L189: =$G189*$D189*$D$197*($E189*L48-$H189*$D$198*$D$199)*L$22*0.024 -> -1.18484469 | M189: -0.2140364601 | N189: 1.026865398 | O189: 6.497535397 | P189: 7.188057786 | Q189: 8.40857522 | R189: 9.162798936 | S189: 5.92422345 | T189: 3.822079645 | U189: 0.868886106 | V189: -0.9172991149 | W189: -1.97474115
C190: west | D190: =A13 -> 38.53905445 | E190: 0.5 | G190: =D5 -> 0.21 | H190: 0.5 | K190: 58.86153031 | L190: =$G190*$D190*$D$197*($E190*L50-$H190*$D$198*$D$199)*L$22*0.024 -> -1.80640256 | M190: =$G190*$D190*$D$197*($E190*M50-$H190*$D$198*$D$199)*M$22*0.024 -> -0.3263178818 | N190: 1.565548886 | O190: 9.906078556 | P190: 10.9588422 | Q190: 12.81963107 | R190: 13.96951313 | S190: 9.032012801 | T190: 5.827105033 | U190: 1.324695211 | V190: -1.398505208 | W190: -3.010670934
C191: süd | D191: =A14 -> 66.71814803 | E191: 0.5 | G191: =D5 -> 0.21 | H191: 0.5 | K191: 129.6885509 | L191: =$G191*$D191*$D$197*($E191*L49-$H191*$D$198*$D$199)*L$22*0.024 -> 3.335693903 | M191: =$G191*$D191*$D$197*($E191*M49-$H191*$D$198*$D$199)*M$22*0.024 -> 3.954411321 | N191: 8.339234758 | O191: 19.57030092 | P191: 16.46998865 | Q191: 18.15801117 | R191: 19.80568255 | S191: 15.01062256 | T191: 15.13167597 | U191: 8.547715627 | V191: 2.824579515 | W191: -1.459366083
B192: =B6 -> Haustür | C192: nord | D192: =C6 -> 3.8 | E192: 0.5 | G192: =D6 -> 1.3 | H192: 0.5 | K192: 8.3371392 | L192: =$G192*$D192*$D$197*($E192*L47-$H192*$D$198*$D$199)*L$22*0.024 -> -1.9111872 | M192: =$G192*$D192*$D$197*($E192*M47-$H192*$D$198*$D$199)*M$22*0.024 -> -1.1286912 | N192: -0.4410432 | O192: 1.707264 | P192: 3.0137952 | Q192: 4.197024 | R192: 4.410432 | S192: 2.205216 | T192: 0.569088 | U192: -0.5145504 | V192: -1.564992 | W192: -2.205216
B193: Dach | C193: ost | D193: 25 | E193: 0.8 | G193: =D8 -> 0.17 | H193: 1 | K193: 37.542528 | L193: =$G193*$D193*$D$197*($E193*L48-$H193*$D$198*$D$199)*L$22*0.024 -> -2.5296 | M193: -1.188096 | N193: 0.303552 | O193: 7.344 | P193: 8.195904 | Q193: 9.792 | R193: 10.725504 | S193: 6.57696 | T193: 3.9168 | U193: 0.101184 | V193: -2.15424 | W193: -3.54144
C194: west | D194: 25 | E194: 0.8 | G194: =D8 -> 0.17 | H194: 1 | K194: 37.542528 | L194: =$G194*$D194*$D$197*($E194*L50-$H194*$D$198*$D$199)*L$22*0.024 -> -2.5296 | M194: =$G194*$D194*$D$197*($E194*M50-$H194*$D$198*$D$199)*M$22*0.024 -> -1.188096 | N194: 0.303552 | O194: 7.344 | P194: 8.195904 | Q194: 9.792 | R194: 10.725504 | S194: 6.57696 | T194: 3.9168 | U194: 0.101184 | V194: -2.15424 | W194: -3.54144
K196: =SUM(K188:K194) -> 320.6224839 | L196: =SUM(L188:L194) -> -8.927970763 | M196: -1.450337862 | N196: 10.5664721 | O196: 54.42558304 | P196: 57.6526164 | Q196: 68.22256836 | R196: 74.11181204 | S196: 47.98218353 | T196: 33.86901671 | U196: 9.809337178 | V196: -7.249733958 | W196: -18.38906288
B197: Durchlasswiderstand | D197: 0.04
B198: Abstrahlungskoeffizient hr | D198: 4
B199: Temperaturdifferenz ∆θer | D199: 10

Sheet ref (hidden)
A1: Transmissionswärmeverluste
C3: Fläche | D3: U-Wert | E3: g-Wert | F3: Fx | G3: HWB | H3: HT | I3: Q in kWh | L3: J | M3: F | N3: M | O3: A | P3: M | Q3: J | R3: J | S3: A | T3: S | U3: O | V3: N | W3: D
B5: =Transmission!A9 -> Aussenwand | C5: =Transmission!B9 -> 158.87 | D5: 0.28 | E5: - | F5: =Transmission!F9 -> 1 | G5: =$C$20*C5 -> 7.9435 | H5: =C5*D5*F5+G5 -> 52.4271 | I5: =SUM(L5:W5) -> 4598.653562 | L5: =(C5*D5*F5+G5)*0.024*(L$20-L$21)*L$22 -> 791.8169767 | M5: =(C5*D5*F5+G5)*0.024*(M$20-M$21)*M$22 -> 648.2506061 | N5: =(C5*D5*F5+G5)*0.024*(N$20-N$21)*N$22 -> 581.1858598 | O5: =(C5*D5*F5+G5)*0.024*(O$20-O$21)*O$22 -> 358.601364 | P5: =(C5*D5*F5+G5)*0.024*(P$20-P$21)*P$22 -> 237.9351506 | Q5: =(C5*D5*F5+G5)*0.024*(Q$20-Q$21)*Q$22 -> 124.5667896 | R5: =(C5*D5*F5+G5)*0.024*(R$20-R$21)*R$22 -> 39.0057624 | S5: =(C5*D5*F5+G5)*0.024*(S$20-S$21)*S$22 -> 27.30403368 | T5: =(C5*D5*F5+G5)*0.024*(T$20-T$21)*T$22 -> 173.6385552 | U5: =(C5*D5*F5+G5)*0.024*(U$20-U$21)*U$22 -> 386.1570478 | V5: =(C5*D5*F5+G5)*0.024*(V$20-V$21)*V$22 -> 539.7894216 | W5: =(C5*D5*F5+G5)*0.024*(W$20-W$21)*W$22 -> 690.4019945
B6: =Transmission!A10 -> Haustür | C6: =Transmission!B10 -> 3.8 | D6: 1.8 | E6: - | F6: =Transmission!F10 -> 1 | G6: =$C$20*C6 -> 0.19 | H6: =C6*D6*F6+G6 -> 7.03 | I6: =SUM(L6:W6) -> 616.637856 | L6: =(C6*D6*F6+G6)*0.024*(L$20-L$21)*L$22 -> 106.175496 | M6: =(C6*D6*F6+G6)*0.024*(M$20-M$21)*M$22 -> 86.924544 | N6: =(C6*D6*F6+G6)*0.024*(N$20-N$21)*N$22 -> 77.931768 | O6: =(C6*D6*F6+G6)*0.024*(O$20-O$21)*O$22 -> 48.0852 | P6: =(C6*D6*F6+G6)*0.024*(P$20-P$21)*P$22 -> 31.904952 | Q6: =(C6*D6*F6+G6)*0.024*(Q$20-Q$21)*Q$22 -> 16.70328 | R6: =(C6*D6*F6+G6)*0.024*(R$20-R$21)*R$22 -> 5.23032 | S6: =(C6*D6*F6+G6)*0.024*(S$20-S$21)*S$22 -> 3.661224 | T6: =(C6*D6*F6+G6)*0.024*(T$20-T$21)*T$22 -> 23.28336 | U6: =(C6*D6*F6+G6)*0.024*(U$20-U$21)*U$22 -> 51.780168 | V6: =(C6*D6*F6+G6)*0.024*(V$20-V$21)*V$22 -> 72.38088 | W6: =(C6*D6*F6+G6)*0.024*(W$20-W$21)*W$22 -> 92.576664
B7: =Transmission!A11 -> Kellerdecke/Sohle | C7: =Transmission!B11 -> 87.24 | D7: 0.35 | E7: - | F7: 0.45 | G7: =$C$20*C7 -> 4.362 | H7: 18.1023 | I7: 1587.846865 | L7: 273.4026574 | M7: 223.831319 | N7: 200.6748569 | O7: 123.819732 | P7: 82.15547832 | Q7: 43.0110648 | R7: 13.4681112 | S7: 9.42767784 | T7: 59.9548176 | U7: 133.3343009 | V7: 186.3812808 | W7: 238.3855682
B8: =Transmission!A12 -> Dach | C8: =Transmission!B12 -> 50 | D8: 0.2 | E8: - | F8: =Transmission!F12 -> 1 | G8: 2.5 | H8: 12.5 | I8: 1096.44 | L8: 188.79 | M8: 154.56 | N8: 138.57 | O8: 85.5 | P8: 56.73 | Q8: 29.7 | R8: 9.3 | S8: 6.51 | T8: 41.4 | U8: 92.07 | V8: 128.7 | W8: 164.61
B9: =Transmission!A13 -> OG-Decke | C9: =Transmission!B13 -> 63.91 | D9: 0.2 | E9: - | F9: =Transmission!F13 -> 0.8 | G9: 3.1955 | H9: 13.4211 | I9: 1177.234471 | L9: 202.7015575 | M9: 165.9492173 | N9: 148.7809462 | O9: 91.800324 | P9: 60.91032024 | Q9: 31.8885336 | R9: 9.9852984 | S9: 6.98970888 | T9: 44.4506832 | U9: 98.85445416 | V9: 138.1836456 | W9: 176.7397817
B10: =Transmission!A14 -> Bodenluke | C10: =Transmission!B14 -> 0.72 | D10: 0.2 | E10: - | F10: =Transmission!F14 -> 0.8 | G10: 0.036 | H10: 0.1512 | I10: 13.26253824 | L10: 2.28360384 | M10: 1.86955776 | N10: 1.67614272 | O10: 1.034208 | P10: 0.68620608 | Q10: 0.3592512 | R10: 0.1124928 | S10: 0.07874496 | T10: 0.5007744 | U10: 1.11367872 | V10: 1.5567552 | W10: 1.99112256
A11: =$C$5*C11/$C$15 -> 28.33449299 | B11: =Transmission!A15 -> Fenster nord | C11: =Transmission!B15 -> 5.47 | D11: 1.3 | E11: 0.6 | F11: =Transmission!F15 -> 1 | G11: 0.2735 | H11: 7.3845 | I11: 647.7328944 | L11: 111.5295804 | M11: 91.3078656 | N11: 81.8616132 | O11: 50.50998 | P11: 33.5138148 | Q11: 17.545572 | R11: 5.494068 | S11: 3.8458476 | T11: 24.457464 | U11: 54.3912732 | V11: 76.030812 | W11: 97.2450036
A12: =$C$5*C12/$C$15 -> 25.27830453 | B12: =Transmission!A16 -> Fenster ost | C12: =Transmission!B16 -> 4.88 | D12: 1.3 | E12: 0.6 | F12: =Transmission!F16 -> 1 | G12: 0.244 | H12: 6.588 | I12: 577.8677376 | L12: 99.4998816 | M12: 81.4593024 | N12: 73.0319328 | O12: 45.06192 | P12: 29.8989792 | Q12: 15.653088 | R12: 4.901472 | S12: 3.4310304 | T12: 21.819456 | U12: 48.5245728 | V12: 67.830048 | W12: 86.7560544
A13: =$C$5*C13/$C$15 -> 38.53905445 | B13: =Transmission!A17 -> Fenster west | C13: =Transmission!B17 -> 7.44 | D13: 1.3 | E13: 0.6 | F13: =Transmission!F17 -> 1 | G13: 0.372 | H13: 10.044 | I13: 881.0114688 | L13: 151.6965408 | M13: 124.1920512 | N13: 111.3437664 | O13: 68.70096 | P13: 45.5836896 | Q13: 23.864544 | R13: 7.472736 | S13: 5.2309152 | T13: 33.265728 | U13: 73.9800864 | V13: 103.413024 | W13: 132.2674272
A14: =$C$5*C14/$C$15 -> 66.71814803 | B14: =Transmission!A18 -> Fenster süd | C14: =Transmission!B18 -> 12.88 | D14: 1.3 | E14: 0.6 | F14: =Transmission!F18 -> 1 | G14: 0.644 | H14: 17.388 | I14: 1525.191898 | L14: =(C14*D14*F14+G14)*0.024*(L$20-L$21)*L$22 -> 262.6144416 | M14: 214.9991424 | N14: 192.7564128 | O14: 118.93392 | P14: 78.9136992 | Q14: 41.313888 | R14: 12.936672 | S14: 9.0556704 | T14: 57.589056 | U14: 128.0730528 | V14: 179.026848 | W14: 228.9790944
C15: =SUM(C11:C14) -> 30.67
C17: =SUM(C5:C14) -> 395.21 | G17: =SUM(G5:G14) -> 19.7605 | H17: =SUM(H5:H14) -> 145.0362 | I17: =SUM(I5:I14) -> 12721.87929 | L17: =SUM(L5:L15) -> 2190.510736 | M17: 1793.343606 | N17: 1607.813299 | O17: 992.047608 | P17: 658.2322901 | Q17: 344.6060112 | R17: 107.9069328 | S17: 75.53485296 | T17: 480.3598944 | U17: 1068.278635 | V17: 1493.292715 | W17: 1909.952711
E18: HT,ref | H18: =H17/C17 -> 0.3669851471 | I18: =SUM(L18:W18) -> 1733.29621 | L18: =$G$17*0.024*(L$20-L$21)*L$22 -> 298.4467836 | M18: =$G$17*0.024*(M$20-M$21)*M$22 -> 244.3346304 | N18: 219.0569988 | O18: 135.16182 | P18: 89.6810532 | Q18: 46.950948 | R18: 14.701812 | S18: 10.2912684 | T18: 65.446776 | U18: 145.5479388 | V18: 203.454108 | W18: 260.2220724
B20: ∆UWB | C20: 0.05 | I20: Innentemp. | K20: Θi | L20: 19 | M20: 19 | N20: 19 | O20: 19 | P20: 19 | Q20: 19 | R20: 19 | S20: 19 | T20: 19 | U20: 19 | V20: 19 | W20: 19
I21: Außentemp. | K21: Θe,M | L21: -1.3 | M21: 0.6 | N21: 4.1 | O21: 9.5 | P21: 12.9 | Q21: 15.7 | R21: 18 | S21: 18.3 | T21: 14.4 | U21: 9.1 | V21: 4.7 | W21: 1.3
I22: Tage je Mon. | K22: tM | L22: 31 | M22: 28 | N22: 31 | O22: 30 | P22: 31 | Q22: 30 | R22: 31 | S22: 31 | T22: 30 | U22: 31 | V22: 30 | W22: 31
A25: Lüftungswärmeverluste | H25: HV
B27: 0,76 oder 0,80 | C27: =IF(Transmission!F50=0,0.76,IF(Transmission!F50=1,0.8)) -> 0.76 | H27: =0.34*$C$28*$C$30 -> 71.3314492 | I27: =SUM(L27:W27) -> 6256.852333 | L27: =0.34*$C$28*$C$30*0.024*(L$20-L$21)*L$22 -> 1077.333144 | M27: =0.34*$C$28*$C$30*0.024*(M$20-M$21)*M$22 -> 881.9991031 | N27: 790.7519133 | O27: 487.9071125 | P27: 323.730649 | Q27: 169.4835233 | R27: 53.0705982 | S27: 37.14941874 | T27: 236.2497598 | U27: 525.3989222 | V27: 734.428601 | W27: 939.3495882
B28: n | C28: 0.55
B29: Ve | C29: =Transmission!B3 -> 501.91
B30: V | C30: =C27*C29 -> 381.4516
A33: Interne Gewinne
B35: AN | C35: =0.32*C29 -> 160.6112 | I35: =SUM(L35:W35) -> 7034.77056 | L35: =$C$36*$C$35*0.024*L$22 -> 597.473664 | M35: =$C$36*$C$35*0.024*M$22 -> 539.653632 | N35: 597.473664 | O35: 578.20032 | P35: 597.473664 | Q35: 578.20032 | R35: 597.473664 | S35: 597.473664 | T35: 578.20032 | U35: 597.473664 | V35: 578.20032 | W35: 597.473664
B36: qi | C36: 5
A39: Solare Gewinne
B41: FF | C41: 0.7 | D41: Rahmenanteil | I41: =SUM(L41:W41) -> 809.0869369 | K41: FE nord | L41: =L47*$C$41*$C$42*$C$43*$C$44*$E$11*$C$11*24/1000*L22 -> 19.3830719 | M41: =M47*$C$41*$C$42*$C$43*$C$44*$E$11*$C$11*24/1000*M22 -> 28.76197766 | N41: 47.07317462 | O41: 85.74999552 | P41: 112.144916 | Q41: 132.6445243 | R41: 138.4505136 | S41: 96.91535952 | T41: 64.31249664 | U41: 45.68866949 | V41: 24.11718624 | W41: 13.84505136
B42: FS | C42: 0.9 | D42: Verschattung | I42: =SUM(L42:W42) -> 1185.445352 | K42: FE ost | L42: =L48*$C$41*$C$42*$C$43*$C$44*$E$12*$C$12*24/1000*L22 -> 30.8792736 | M42: =M48*$C$41*$C$42*$C$43*$C$44*$E$12*$C$12*24/1000*M22 -> 41.27861606 | N42: 65.46406003 | O42: 149.41584 | P42: 161.8073937 | Q42: 179.299008 | R42: 192.6866673 | S42: 142.0446586 | T42: 107.5794048 | U42: 62.99371814 | V42: 33.46914816 | W42: 18.52756416
B43: FC | C43: 1 | D43: Abminderung Sonnenschutz | I43: =SUM(L43:W43) -> 3563.330352 | K43: FE süd | L43: =L49*$C$41*$C$42*$C$43*$C$44*$E$14*$C$14*24/1000*L22 -> 182.5623153 | M43: =M49*$C$41*$C$42*$C$43*$C$44*$E$14*$C$14*24/1000*M22 -> 179.6177618 | N43: 260.8033075 | O43: 432.2183846 | P43: 387.9449199 | Q43: 410.1342336 | R43: 440.1055814 | S43: 365.1246305 | T43: 362.8110528 | U43: 264.0633489 | V43: 170.3634509 | W43: 107.5813644
B44: Fw | C44: 0.9 | D44: Abminderung nicht senkrechte Strahlung | I44: =SUM(L44:W44) -> 1807.318324 | K44: FE west | L44: =L50*$C$41*$C$42*$C$43*$C$44*$E$13*$C$13*24/1000*L22 -> 47.0782368 | M44: =M50*$C$41*$C$42*$C$43*$C$44*$E$13*$C$13*24/1000*M22 -> 62.93297203 | N44: 99.80586202 | O44: 227.79792 | P44: 246.6899608 | Q44: 273.357504 | R44: 293.7681976 | S44: 216.5598893 | T44: 164.0145024 | U44: 96.03960307 | V44: 51.02673408 | W44: 28.24694208
I46: =SUM(I41:I44) -> 7365.180965
K47: IS,nord | L47: 14 | M47: 23 | N47: 34 | O47: 64 | P47: 81 | Q47: 99 | R47: 100 | S47: 70 | T47: 48 | U47: 33 | V47: 18 | W47: 10
K48: IS,ost | L48: 25 | M48: 37 | N48: 53 | O48: 125 | P48: 131 | Q48: 150 | R48: 156 | S48: 115 | T48: 90 | U48: 51 | V48: 28 | W48: 15
K49: IS,süd | L49: 56 | M49: 61 | N49: 80 | O49: 137 | P49: 119 | Q49: 130 | R49: 135 | S49: 112 | T49: 115 | U49: 81 | V49: 54 | W49: 33
K50: IS,west | L50: 25 | M50: 37 | N50: 53 | O50: 125 | P50: 131 | Q50: 150 | R50: 156 | S50: 115 | T50: 90 | U50: 51 | V50: 28 | W50: 15
A51: Ausnutzungsgrad Gewinne
A53: spez. | B53: Cwirk,ƞ leichte Gebäude | D53: 15 | E53: Wh/(m³*K)
A54: spez. | B54: Cwirk,ƞ schwere Gebäude | D54: 50 | E54: Wh/(m³*K)
A55: spez. | B55: Cwirk,NA leichte Gebäude | D55: 12 | E55: Wh/(m³*K) | I55: =SUM(L55:W55) -> 14399.95153 | K55: Qg | L55: =L35+SUM(L41:L44) -> 877.3765616 | M55: =M35+SUM(M41:M44) -> 852.2449596 | N55: 1070.620068 | O55: 1473.38246 | P55: 1506.060854 | Q55: 1573.63559 | R55: 1662.484624 | S55: 1418.118202 | T55: 1276.917777 | U55: 1066.259004 | V55: 857.1768394 | W55: 765.674586
A56: spez. | B56: Cwirk,NA schwere Gebäude | D56: 18 | E56: Wh/(m³*K) | I56: =SUM(L56:W56) -> 18277.70325 | K56: Ql | L56: =L17+L27-K138 -> 3135.270495 | M56: =M17+M27-L138 -> 2572.001482 | N56: 2312.313794 | O56: 1429.051733 | P56: 948.1883604 | Q56: 496.4074441 | R56: 155.4407148 | S56: 108.8085004 | T56: 691.9618918 | U56: 1538.863077 | V56: 2148.370269 | W56: 2741.025492
A58: abs. | B58: Cwirk | D58: =IF(Lüftung_Gewinne!F44=0,D53*$C$29,IF(Lüftung_Gewinne!F44=1,D54*$C$29,IF(Lüftung_Gewinne!F44=2,D55*$C$29,IF(Lüftung_Gewinne!F44=3,D56*$C$29)))) -> 9034.38 | E58: Wh/K | K58: Ɣ = Qg / Ql | L58: =L55/L56 -> 0.2798407866 | M58: =M55/M56 -> 0.33135477 | N58: 0.4630081224 | O58: 1.031021079 | P58: 1.588356193 | Q58: 3.170048332 | R58: 10.69529708 | S58: 13.03315639 | T58: 1.845358526 | U58: 0.6928875088 | V58: 0.3989893417 | W58: 0.2793387323
K59:  = Cwirk / H | L59: =$D$58/($H$17+$H$27) -> 41.7547634 | M59: =$D$58/($H$17+$H$27) -> 41.7547634 | N59: 41.7547634 | O59: 41.7547634 | P59: 41.7547634 | Q59: 41.7547634 | R59: 41.7547634 | S59: 41.7547634 | T59: 41.7547634 | U59: 41.7547634 | V59: 41.7547634 | W59: 41.7547634
K60: a = 1+(/16) | L60: =1+L59/16 -> 3.609672713 | M60: =1+M59/16 -> 3.609672713 | N60: 3.609672713 | O60: 3.609672713 | P60: 3.609672713 | Q60: 3.609672713 | R60: 3.609672713 | S60: 3.609672713 | T60: 3.609672713 | U60: 3.609672713 | V60: 3.609672713 | W60: 3.609672713
B61: wenn Ɣ = 1 | C61: dann | D61:  = a / (a+1)
B62: wenn Ɣ  1 | C62: dann | D62:  = 1 - Ɣa / 1 - Ɣa+1 | K62:  | L62: =IF(L58=1,L60/(L60+1),(1-L58^L60)/(1-L58^(L60+1))) -> 0.9927190964 | M62: =IF(M58=1,M60/(M60+1),(1-M58^M60)/(1-M58^(M60+1))) -> 0.987517849 | N62: 0.9656824611 | O62: 0.7709481825 | P62: 0.5797893065 | Q62: 0.3120813818 | R62: 0.09348270352 | S62: 0.07672069602 | T62: 0.5129940449 | U62: 0.899860005 | V62: 0.9778784999 | W62: 0.9927612631
A65: Heizwärmebedarf
L66: J | M66: F | N66: M | O66: A | P66: M | Q66: J | R66: J | S66: A | T66: S | U66: O | V66: N | W66: D
B67: nutzbare Solargewinne | I67: =SUM(L67:W67) -> 3953.636743 | K67: Qs | L67: =SUM(L41:L44)*L62 -> 277.8649516 | M67: =SUM(M41:M44)*M62 -> 308.6895154 | N67: 456.9091841 | O67: 690.139044 | P67: 526.789137 | Q67: 310.6568146 | R67: 99.56010381 | S67: 62.96042013 | T67: 358.4378943 | U67: 421.841178 | V67: 272.8051403 | W67: 166.9833597
B68: nutzbare interne Gewinne | I68: =SUM(L68:W68) -> 4770.134225 | K68: Qi | L68: =L35*L62 -> 593.1235159 | M68: =M35*M62 -> 532.9175939 | N68: 576.9698383 | O68: 445.7624858 | P68: 346.4088413 | Q68: 180.4455548 | R68: 55.85345339 | S68: 45.83859536 | T68: 296.6133209 | U68: 537.6426543 | V68: 565.4096616 | W68: 593.1487094
B69: Transmission | I69: =SUM(L69:W69) -> 12721.87929 | K69: QT | L69: =L17 -> 2190.510736 | M69: =M17 -> 1793.343606 | N69: 1607.813299 | O69: 992.047608 | P69: 658.2322901 | Q69: 344.6060112 | R69: 107.9069328 | S69: 75.53485296 | T69: 480.3598944 | U69: 1068.278635 | V69: 1493.292715 | W69: 1909.952711
B70: Lüftung | I70: =SUM(L70:W70) -> 6256.852333 | K70: QV | L70: =L27 -> 1077.333144 | M70: =M27 -> 881.9991031 | N70: 790.7519133 | O70: 487.9071125 | P70: 323.730649 | Q70: 169.4835233 | R70: 53.0705982 | S70: 37.14941874 | T70: 236.2497598 | U70: 525.3989222 | V70: 734.428601 | W70: 939.3495882
B71: Heizwärmebedarf | F71: =I71/C35 -> 54.15636768 | G71: kWh/(m²*a) | I71: =SUM(L71:W71) -> 8698.119201 | K71: Qh | L71: =(L69+L70-K138-K196)-(L67+L68) -> 1848.135885 | M71: =(M69+M70-L138-L196)-(M67+M68) -> 1741.602744 | N71: 1280.053701 | O71: 279.1794233 | P71: 4.639385971 | Q71: -69.14837013 | R71: -88.07949887 | S71: -95.66757651 | T71: -25.11529613 | U71: 535.4201715 | V71: 1297.134482 | W71: 1989.964151
L79: Brennstoff | N79: Gewinn | O79: Hilfsenergie | Q79: Deckung
F80: Nutzenergie Warmwasser | I80: =C35*12.5 -> 2007.64 | L80: spezifisch | M80: absolut
F82: Aufwand Warmwasser | K82: Verteilung | L82: 9.0665536 | M82: =L82*Transmission!G3+I80 -> 3463.830054 | N82: 4.163888 | O82: 0.78604416
K84: Speicherung | L84: 2.393888 | M84: 2069.923201 | N84: 1.0575552 | O84: 0.07787776 | Q84: 0.53787776
K86: Erzeugung | L86: 1.12787776 | M86: =M84*L86 -> 2334.620344 | O86: 0.8575552
K88: gesamt | M88: =M86 -> 2334.620344 | N88: =(N82+N84)*Transmission!G3 -> 838.6222581 | O88: =(O82+O84+O86)*Transmission!G3 -> 276.488506
F91: Aufwand Lüftungsanlage | K91: Verteilung | L91: 0 | N91: 0 | O91: 0
K93: Erzeugung | L93: 0 | N93: 0 | O93: 1.1
K95: gesamt | L95: =(L91+L93)*Transmission!D3 -> 0 | N95: =(N91+N93)*Transmission!F3 -> 0 | O95: =(O91+O93)*Transmission!G3 -> 176.67232
F98: Nutzenergie Heizung | I98: =I71 -> 8698.119201
F99: abzgl. Rückgewinn | I99: =N88+N95 -> 838.6222581
F100: Netto Nutzenergie Heizung | I100: =I98-I99 -> 7859.496943
F102: Aufwand Heizung | K102: Übergabe | L102: 1.1 | M102: =L102*Transmission!G3+I100 -> 8036.169263 | O102: 0
K104: Verteilung | L104: 1.7575552 | M104: =M102+L104*Transmission!G3 -> 8318.452313 | O104: 1.28845504
K106: Erzeugung | L106: 0.96 | M106: =M104*L106 -> 7985.71422 | O106: 0.64302208
K108: gesamt | M108: =M106 -> 7985.71422 | O108: =(O102+O104+O106)*Transmission!G3 -> 310.216858
K110: Nutzenergie | O110: =I80+I98 -> 10705.7592
K111: Endenergie | M111: =M88+M95+M108 -> 10320.33456 | O111: =O88+O95+O108 -> 763.377684 | Q111: 2009 | R111: =Primärenergie!K40 -> FALSE
K112: PE-Faktor | M112: 1.1 | O112: =IF(R111=TRUE,2.6,IF(R112=TRUE,2.4,IF(R113=TRUE,1.8))) -> 1.8 | Q112: 2013 | R112: =Primärenergie!K41 -> FALSE
K113: PE | M113: =M111*M112 -> 11352.36802 | O113: =O111*O112 -> 1374.079831 | Q113: 2016 | R113: =Primärenergie!K42 -> TRUE
K114: gesamt | O114: =M113+O113 -> 12726.44785
K115: gesamt spezifisch | O115: =IF(R111=TRUE,O114/Transmission!G3,IF(R112=TRUE,O114/Transmission!G3,IF(R113=TRUE,O114/Transmission!G3*0.75))) -> 59.42820855
K116: ep | O116: =O114/O110 -> 1.188747814
B122: Einfluss Nachtabsenkung
K124: J | L124: F | M124: M | N124: A | O124: M | P124: J | Q124: J | R124: A | S124: S | T124: O | U124: N | V124: D
D125: Außentemperatur | H125: q e | I125: °C | K125: =L21 -> -1.3 | L125: =M21 -> 0.6 | M125: 4.1 | N125: 9.5 | O125: 12.9 | P125: 15.7 | Q125: 18 | R125: 18.3 | S125: 14.4 | T125: 9.1 | U125: 4.7 | V125: 1.3
D126: niedrigste Innentemperatur | H126: q inh | I126: °C | K126: =K125 -> -1.3 | L126: =L125 -> 0.6 | M126: 4.1 | N126: 9.5 | O126: 12.9 | P126: 15.7 | Q126: 18 | R126: 18.3 | S126: 14.4 | T126: 9.1 | U126: 4.7 | V126: 1.3
D127: niedrigste Bauteiltemperatur | H127: q cnh | I127: °C | K127: =K125+$P$176*(K126-K125) -> -1.3 | L127: =L125+$P$176*(L126-L125) -> 0.6 | M127: 4.1 | N127: 9.5 | O127: 12.9 | P127: 15.7 | Q127: 18 | R127: 18.3 | S127: 14.4 | T127: 9.1 | U127: 4.7 | V127: 1.3
D128: Innentemp. am Ende der nicht Heizph. | H128: q i1 | I128: °C | K128: =K126+$P$177*(K135-K127)*EXP(-K129/$P$179) -> 15.16013732 | L128: =L126+$P$177*(L135-L127)*EXP(-L129/$P$179) -> 15.51953333 | M128: 16.18157862 | N128: 17.20301993 | O128: 17.84614964 | P128: 18.37578587 | Q128: 18.8108442 | R128: 18.86759094 | S128: 18.12988333 | T128: 17.12735761 | U128: 16.2950721 | V128: 15.65194239
D129: Zeit in der nicht geheizt wird | H129: tnh | I129: h | K129: =$P$142 -> 7 | L129: =$P$142 -> 7 | M129: 7 | N129: 7 | O129: 7 | P129: 7 | Q129: 7 | R129: 7 | S129: 7 | T129: 7 | U129: 7 | V129: 7
D130: Zeit mit abgesenkten Regelbetrieb | H130: tsb | I130: h | K130: 0 | L130: 0 | M130: 0 | N130: 0 | O130: 0 | P130: 0 | Q130: 0 | R130: 0 | S130: 0 | T130: 0 | U130: 0 | V130: 0
D131: höchst mögliche Innentemperatur | H131: q ipp | I131: °C | K131: =K125+($P$144+$P$146)/$P$150 -> 43.64240814 | L131: =L125+($P$144+$P$146)/$P$150 -> 45.54240814 | M131: 49.04240814 | N131: 54.44240814 | O131: 57.84240814 | P131: 60.64240814 | Q131: 62.94240814 | R131: 63.24240814 | S131: 59.34240814 | T131: 54.04240814 | U131: 49.64240814 | V131: 46.24240814
D132: höchst mögliche Bauteiltemperatur | H132: q cpp | I132: °C | K132: =K125+$P$176*(K131-K125) -> 42.87757157 | L132: =L125+$P$176*(L131-L125) -> 44.77757157 | M132: 48.27757157 | N132: 53.67757157 | O132: 57.07757157 | P132: 59.87757157 | Q132: 62.17757157 | R132: 62.47757157 | S132: 58.57757157 | T132: 53.27757157 | U132: 48.87757157 | V132: 45.47757157
D133: Bauteiltemperatur Ende nicht Heizph. | H133: q c1 | I133: °C | K133: =K127+(K128-K126)/$P$177 -> 15.60068106 | L133: =L127+(L128-L126)/$P$177 -> 15.91884392 | M133: 16.50493339 | N133: 17.40918572 | O133: 17.97852978 | P133: 18.44740136 | Q133: 18.83254587 | R133: 18.88278211 | S133: 18.22971098 | T133: 17.34220407 | U133: 16.60540587 | V133: 16.03606181
D134: Zeit der Aufheizphase | H134: tbh | I134: h | K134: =IF(SUM($P$179*LN($P$177*(K132-K133)/(K131-$P$182)))>0,$P$179*LN($P$177*(K132-K133)/(K131-$P$182)),0) -> 3.167385429 | L134: =IF(SUM($P$179*LN($P$177*(L132-L133)/(L131-$P$182)))>0,$P$179*LN($P$177*(L132-L133)/(L131-$P$182)),0) -> 2.412935533 | M134: 1.24671205 | N134: 0 | O134: 0 | P134: 0 | Q134: 0 | R134: 0 | S134: 0 | T134: 0 | U134: 1.070752931 | V134: 2.158477481
D135: Bauteiltemperatur beginn Absenkung | H135: q co | I135: °C | K135: =K125+$P$176*($P$182-K125) -> 18.65453159 | L135: =L125+$P$176*($P$182-L125) -> 18.68686607 | M135: 18.74642959 | N135: 18.83832759 | O135: 18.89618929 | P135: 18.94384011 | Q135: 18.98298185 | R135: 18.9880873 | S135: 18.92171652 | T135: 18.83152033 | U135: 18.75664048 | V135: 18.69877877
D136: Bauteiltemperatur ende Aufheizph. | H136: q c3 | I136: °C | K136: =IF(K134>0,K132+($P$182-K131)/$P$177,K133) -> 17.57562708 | L136: =IF(L134>0,L132+($P$182-L131)/$P$177,L133) -> 17.52477495 | M136: 17.43109996 | N136: 17.40918572 | O136: 17.97852978 | P136: 18.44740136 | Q136: 18.83254587 | R136: 18.88278211 | S136: 18.22971098 | T136: 17.34220407 | U136: 17.41504139 | V136: 17.50603995
D137: Berechnung der täglichen Reduzierung | H137: DQilj | I137: kWh/d | K137: =($P$150*(($P$182-K126)*K129+($P$182-$P$143)*K130+($P$182-K131)*K134)-$P$147*$P$176*(K135-K133+K133-K136))/1000 -> 4.276560795 | L137: =($P$150*(($P$182-L126)*L129+($P$182-$P$143)*L130+($P$182-L131)*L134)-$P$147*$P$176*(L135-L133+L133-L136))/1000 -> 3.69075809 | M137: 2.7823038 | N137: 1.696766251 | O137: 1.08950254 | P137: 0.5894030136 | Q137: 0.1786069738 | R137: 0.1250248817 | S137: 0.8215920796 | T137: 1.768209041 | U137: 2.645034906 | V137: 3.492800226
D138: Berechnung der monatl. Reduzierung | H138: DQil | I138: kWh/M | K138: =K137*L22 -> 132.5733846 | L138: =L137*M22 -> 103.3412265 | M138: 86.25141779 | N138: 50.90298754 | O138: 33.77457875 | P138: 17.68209041 | Q138: 5.536816188 | R138: 3.875771332 | S138: 24.64776239 | T138: 54.81448026 | U138: 79.35104718 | V138: 108.276807 | W138: =SUM(K138:V138) -> 701.02837
K142: Dauer der Nachtabsenkung tu = | P142: 7 | Q142: h
K143: Mindest- Innentemperatur qisb = | P143: 14 | Q143: °C
K144: Nennleistung der Heizungsanlage Fpp = 1,5 x (HT+HV,n=0,5) x 31 | P144: =1.5*(H17+P149)*31 -> 9724.083199 | Q144: W
K145: Abschaltbetrieb = | P145: ja
K146: Interne Wärmegewinne während der Nachtabsenkung Fg = | P146: 0 | Q146: W
K147: Wirksame Wärmespeicherf. Cwirk,HU = | P147: =D58 -> 9034.38 | Q147: Wh/K
K148: Lüftungswärmeverluste Hv = | P148: =H27 -> 71.3314492 | Q148: W/K
K149: Lüftungswärmeverluste Hv,n=0,5 = | P149: =0.5*C30*0.28*1.2 -> 64.0838688 | Q149: W/K
K150: Spezifischer Wärmeverlust Hsb = (HT + HV) = | P150: =H17+H27 -> 216.3676492 | Q150: W/K
K151: Spezifischer Wärmeverlust zwischen den Bauteilen Hic = 4 x AN/0,13 m² | P151: =4*C35/0.13 -> 4941.883077 | Q151: W/K
K152: Spezif. Wärmeverlust leichter Bauteile Hw (Fenster, Türen, Paneele <60kg(m²))
K153: Eingabe Bauteilnummer | M153: Name Bauteil | P153: HW
K154: 3 | M154: Dachfläche | P154: =H8 -> 12.5 | Q154: W/K
K155: 4 | M155: Haustüre | P155: =H6 -> 7.03 | Q155: W/K
Q156: W/K
Q157: W/K
Q158: W/K
Q159: W/K
Q160: W/K
Q161: W/K
Q162: W/K
Q163: W/K
Q164: W/K
Q165: W/K
Q166: W/K
K167: Fenster | M167: Fenster Süd | P167: =H14 -> 17.388 | Q167: W/K
M168: Fenster Ost | P168: =H12 -> 6.588 | Q168: W/K
M169: Fenster West | P169: =H13 -> 10.044 | Q169: W/K
M170: Fenster Nord | P170: =H11 -> 7.3845 | Q170: W/K
M171: Fenster <30°C | Q171: W/K
M172: Fenster ohne Gewinne | Q172: W/K
M173: Summe HW = | P173: =SUM(P154:P172) -> 60.9345 | Q173: W/K
K174: Spezifischer Wärmeverlust zwischen den Innenbauteilen und außen Hce:
K175: Hce = Hic x (Hsb - Hw - Hv) / (Hic - Hsb + Hw + Hv) = | P175: =P151*(P150-P173-P148)/(P151-P150+P173+P148) -> 85.55773423 | Q175: W/K
K176: Wirksamer Anteil der Wärmespeicherfähigkeit z = Hic / (Hic + Hce) = | P176: =P151/(P151+P175) -> 0.9829818515 | Q176: -----
K177: Verhältniswert x = Hic / (Hic + Hw + Hv) = | P177: =P151/(+P151+P173+P148) -> 0.9739333732 | Q177: -----
K178: Reaktionszeit der Bauteiltemperatur auf einen Wechsel der Heizleistung
K179: tp = z x C /(x . Hsb) = | P179: =P176*P147/(P177*P150) -> 42.14269248
K180: Ansprechzeit der Bauteiltemperatur auf einen Wechsel der Lufttemperatur:
K181: tT = z x C /(Hce + Hic) = | P181: =P176*P147/(P175+P151) -> 1.766431851
K182: normale Sollinnentemperatur q io = | P182: 19 | Q182: °C
B184: Solare Gewinne durch opake Bauteile
D186: Fläche | E186: Strahlungsab-sorptionsgrad | G186: U-Wert | H186: Formfaktor
D187: m² | E187: αi | G187: W/(m²*K) | H187: Ff | K187: gesamt | L187: J | M187: F | N187: M | O187: A | P187: M | Q187: J | R187: J | S187: A | T187: S | U187: O | V187: N | W187: D
B188: =B5 -> Aussenwand | C188: nord | D188: =A11 -> 28.33449299 | E188: 0.5 | G188: =D5 -> 0.28 | H188: 0.5 | K188: =SUM(L188:W188) -> 13.389476 | L188: =$G188*$D188*$D$197*($E188*L47-$H188*$D$198*$D$199)*L$22*0.024 -> -3.069373621 | M188: =$G188*$D188*$D$197*($E188*M47-$H188*$D$198*$D$199)*M$22*0.024 -> -1.812682188 | N188: -0.7083169896 | O188: 2.741872218 | P188: 4.840166095 | Q188: 6.740435868 | R188: 7.083169896 | S188: 3.541584948 | T188: 0.9139574059 | U188: -0.8263698212 | V188: -2.513382866 | W188: -3.541584948
C189: ost | D189: =A12 -> 25.27830453 | E189: 0.5 | G189: =D5 -> 0.28 | H189: 0.5 | K189: =SUM(L189:W189) -> 51.47746736 | L189: =$G189*$D189*$D$197*($E189*L48-$H189*$D$198*$D$199)*L$22*0.024 -> -1.57979292 | M189: =$G189*$D189*$D$197*($E189*M48-$H189*$D$198*$D$199)*M$22*0.024 -> -0.2853819468 | N189: 1.369153864 | O189: 8.663380529 | P189: 9.584077048 | Q189: 11.21143363 | R189: 12.21706525 | S189: 7.8989646 | T189: 5.096106194 | U189: 1.158514808 | V189: -1.223065486 | W189: -2.6329882
C190: west | D190: =A13 -> 38.53905445 | E190: 0.5 | G190: =D5 -> 0.28 | H190: 0.5 | K190: 78.48204041 | L190: =$G190*$D190*$D$197*($E190*L50-$H190*$D$198*$D$199)*L$22*0.024 -> -2.408536747 | M190: =$G190*$D190*$D$197*($E190*M50-$H190*$D$198*$D$199)*M$22*0.024 -> -0.4350905091 | N190: 2.087398514 | O190: 13.20810474 | P190: 14.6117896 | Q190: 17.09284143 | R190: 18.62601751 | S190: 12.04268373 | T190: 7.769473377 | U190: 1.766260281 | V190: -1.864673611 | W190: -4.014227912
C191: süd | D191: =A14 -> 66.71814803 | E191: 0.5 | G191: =D5 -> 0.28 | H191: 0.5 | K191: 172.9180678 | L191: =$G191*$D191*$D$197*($E191*L49-$H191*$D$198*$D$199)*L$22*0.024 -> 4.447591871 | M191: =$G191*$D191*$D$197*($E191*M49-$H191*$D$198*$D$199)*M$22*0.024 -> 5.272548428 | N191: 11.11897968 | O191: 26.09373457 | P191: 21.95998486 | Q191: 24.21068156 | R191: 26.40757673 | S191: 20.01416342 | T191: 20.17556796 | U191: 11.39695417 | V191: 3.76610602 | W191: -1.945821444
B192: =B6 -> Haustür | C192: nord | D192: =C6 -> 3.8 | E192: 0.5 | G192: =D6 -> 1.8 | H192: 0.5 | K192: 11.5437312 | L192: =$G192*$D192*$D$197*($E192*L47-$H192*$D$198*$D$199)*L$22*0.024 -> -2.6462592 | M192: =$G192*$D192*$D$197*($E192*M47-$H192*$D$198*$D$199)*M$22*0.024 -> -1.5628032 | N192: -0.6106752 | O192: 2.363904 | P192: 4.1729472 | Q192: 5.811264 | R192: 6.106752 | S192: 3.053376 | T192: 0.787968 | U192: -0.7124544 | V192: -2.166912 | W192: -3.053376
B193: Dach | C193: ost | D193: 25 | E193: 0.8 | G193: =D8 -> 0.2 | H193: 1 | K193: 44.16768 | L193: =$G193*$D193*$D$197*($E193*L48-$H193*$D$198*$D$199)*L$22*0.024 -> -2.976 | M193: =$G193*$D193*$D$197*($E193*M48-$H193*$D$198*$D$199)*M$22*0.024 -> -1.39776 | N193: 0.35712 | O193: 8.64 | P193: 9.64224 | Q193: 11.52 | R193: 12.61824 | S193: 7.7376 | T193: 4.608 | U193: 0.11904 | V193: -2.5344 | W193: -4.1664
C194: west | D194: 25 | E194: 0.8 | G194: =D8 -> 0.2 | H194: 1 | K194: 44.16768 | L194: =$G194*$D194*$D$197*($E194*L50-$H194*$D$198*$D$199)*L$22*0.024 -> -2.976 | M194: =$G194*$D194*$D$197*($E194*M50-$H194*$D$198*$D$199)*M$22*0.024 -> -1.39776 | N194: 0.35712 | O194: 8.64 | P194: 9.64224 | Q194: 11.52 | R194: 12.61824 | S194: 7.7376 | T194: 4.608 | U194: 0.11904 | V194: -2.5344 | W194: -4.1664
K196: =SUM(K188:K194) -> 416.1461428 | L196: =SUM(L188:L194) -> -11.20837062 | M196: -1.618929417 | N196: 13.97077987 | O196: 70.35099605 | P196: 74.45344481 | Q196: 88.10665648 | R196: 95.67706139 | S196: 62.0259727 | T196: 43.95907294 | U196: 13.02098504 | V196: -9.070727943 | W196: -23.5207985
B197: Durchlasswiderstand | D197: 0.04
B198: Abstrahlungskoeffizient hr | D198: 4
B199: Temperaturdifferenz ∆θer | D199: 10
